Workbook

Sheet P-Values
B1: Simulating P-Values for Hypothesis Tests
C3: This program simulates the P-Values of
C4: sample means based on repeated samples
C5: drawn from a variety of population patterns.
A8: Which population do you want? | F8: Normal population | I8: 1
F9: Uniform population
F10: Skewed population
F11: Normal population
A14: What is the level of significance a? | F14: 10% | I14: 1
F15: 5%
F16: 2%
F17: 1%
A19: The mean and standard deviation | E19: m = | F19: =IF(pop=1,Pops!B2,IF(pop=2,Pops!E2,IF(pop=3,Pops!G2,Pops!I2))) -> 68.07
B20: of the sampling distribution are: | E20: s = | F20: =IF(pop=1,Pops!C3,IF(pop=2,Pops!F3,IF(pop=3,Pops!H3,Pops!J3))) -> 0.391
A22: =" " &Calcs!K27&" of the 100 random sample means, or "&TEXT(Calcs!L27,"0.00%")&", " -> 4 of the 100 random sample means, or 4.00%,
B23: ="based on samples of size 50 from the "&TEXT(pop_name,"")&" population" -> based on samples of size 50 from the normal population
B24: ="fell in the rejection region at the "&TEXT(Calcs!L24,"0%")&" significance level." -> fell in the rejection region at the 10% significance level.
C27: Run a New Random Sample | F27: FALSE
A30: Click each item below for suggestions and investigations
C31: Item 1
C32: Item 2
C33: Item 3
C34: Item 4
C35: Item 5
C36: Item 6
A40: To access/download all the DIGMath Apps for Statistics
A41: Click this link: | C41: DIGMath for Statistics and Probability
A43: Created by: Sheldon P. Gordon & Florence S. Gordon © 2025
A44: Farmingdale State College NYIT
A45: Development of this module was supported by the
A46: NSF's Division of Undergraduate Education
A47: under grants DUE-0310123 and DUE-0442160.

Sheet Pops
B1: Normal data | E1: Uniform data | G1: U-shaped | I1: Skewed data | O1: =mean-1 -> 67.07 | P1: =0.398942/EXP((O1-mean)^2/2/sd^2)/sd -> 0.03854205983
A2: mu, sigma,n= | B2: 68.07 | E2: 68.47 | G2: 68.61 | I2: 71.19 | O2: =O1+0.01 -> 67.08 | P2: 0.04113934009
B3: 2.762 | C3: =B3/SQRT(50) -> 0.3906057859 | E3: 4.162 | F3: =E3/SQRT(50) -> 0.5885956847 | G3: 4.801 | H3: =G3/SQRT(50) -> 0.6789639313 | I3: 3.291 | J3: =I3/SQRT(50) -> 0.4654176834 | O3: =O2+0.01 -> 67.09 | P3: 0.04388287507
B4: 210 | E4: 424 | G4: 397 | I4: 410 | O4: 67.1 | P4: 0.04677870327
A5: 1 | B5: 61 | C5: 61 | D5: 4 | E5: 61 | F5: =COUNTIF(E$5:E$502,"=61") -> 23 | G5: 61 | H5: =COUNTIF(G$5:G$502,"=61") -> 18 | I5: 61 | J5: =COUNTIF(I$5:I$502,"=61") -> 3 | O5: 67.11 | P5: 0.04983295454
A6: 2 | B6: 61 | C6: 62 | D6: 12 | E6: 61 | F6: =COUNTIF(E$5:E$502,"=62") -> 28 | G6: 61 | H6: =COUNTIF(G$5:G$502,"=62") -> 22 | I6: 61 | J6: =COUNTIF(I$5:I$502,"=62") -> 5 | O6: 67.12 | P6: 0.05305183956
A7: 3 | B7: 62 | C7: 63 | D7: 6 | E7: 61 | F7: =COUNTIF(E$5:E$502,"=63") -> 19 | G7: 61 | H7: =COUNTIF(G$5:G$502,"=63") -> 35 | I7: 61 | J7: =COUNTIF(I$5:I$502,"=63") -> 6 | O7: 67.13 | P7: 0.05644163828
A8: 4 | B8: 62 | C8: 64 | D8: 16 | E8: 61 | F8: =COUNTIF(E$5:E$502,"=64") -> 24 | G8: 61 | H8: =COUNTIF(G$5:G$502,"=64") -> 44 | I8: 62 | J8: =COUNTIF(I$5:I$502,"=64") -> 15 | O8: 67.14 | P8: 0.06000868742
A9: 5 | B9: 62 | C9: 65 | D9: 28 | E9: 61 | F9: =COUNTIF(E$5:E$502,"=65") -> 25 | G9: 61 | H9: =COUNTIF(G$5:G$502,"=65") -> 36 | I9: 62 | J9: =COUNTIF(I$5:I$502,"=65") -> 11 | O9: 67.15 | P9: 0.06375936697
A10: 6 | B10: 62 | C10: 66 | D10: 54 | E10: 61 | F10: =COUNTIF(E$5:E$502,"=66") -> 27 | G10: 61 | H10: =COUNTIF(G$5:G$502,"=66") -> 21 | I10: 62 | J10: =COUNTIF(I$5:I$502,"=66") -> 10 | O10: 67.16 | P10: 0.0677000857
A11: 7 | B11: 62 | C11: 67 | D11: 60 | E11: 61 | F11: =COUNTIF(E$5:E$502,"=67") -> 21 | G11: 61 | H11: =COUNTIF(G$5:G$502,"=67") -> 7 | I11: 62 | J11: =COUNTIF(I$5:I$502,"=67") -> 15 | O11: 67.17 | P11: 0.0718372656
A12: 8 | B12: 62 | C12: 68 | D12: 70 | E12: 61 | F12: =COUNTIF(E$5:E$502,"=68") -> 29 | G12: 61 | H12: =COUNTIF(G$5:G$502,"=68") -> 8 | I12: 62 | J12: =COUNTIF(I$5:I$502,"=68") -> 14 | O12: 67.18 | P12: 0.0761773254
A13: 9 | B13: 63 | C13: 69 | D13: 56 | E13: 61 | F13: =COUNTIF(E$5:E$502,"=69") -> 34 | G13: 61 | H13: =COUNTIF(G$5:G$502,"=69") -> 9 | I13: 63 | J13: =COUNTIF(I$5:I$502,"=69") -> 23 | O13: 67.19 | P13: 0.08072666304
A14: 10 | B14: 63 | C14: 70 | D14: 32 | E14: 61 | F14: =COUNTIF(E$5:E$502,"=70") -> 29 | G14: 61 | H14: =COUNTIF(G$5:G$502,"=70") -> 10 | I14: 63 | J14: =COUNTIF(I$5:I$502,"=70") -> 20 | O14: 67.2 | P14: 0.08549163709
A15: 11 | B15: 63 | C15: 71 | D15: 28 | E15: 61 | F15: =COUNTIF(E$5:E$502,"=71") -> 44 | G15: 61 | H15: =COUNTIF(G$5:G$502,"=71") -> 24 | I15: 63 | J15: =COUNTIF(I$5:I$502,"=71") -> 54 | O15: 67.21 | P15: 0.09047854734
A16: 12 | B16: 64 | C16: 72 | D16: 20 | E16: 61 | F16: =COUNTIF(E$5:E$502,"=72") -> 37 | G16: 61 | H16: =COUNTIF(G$5:G$502,"=72") -> 34 | I16: 63 | J16: =COUNTIF(I$5:I$502,"=72") -> 58 | O16: 67.22 | P16: 0.09569361424
A17: 13 | B17: 64 | C17: 73 | D17: 18 | E17: 61 | F17: =COUNTIF(E$5:E$502,"=73") -> 28 | G17: 61 | H17: =COUNTIF(G$5:G$502,"=73") -> 45 | I17: 63 | J17: =COUNTIF(I$5:I$502,"=73") -> 60 | O17: 67.23 | P17: 0.1011429576
A18: 14 | B18: 64 | C18: 74 | D18: 12 | E18: 61 | F18: =COUNTIF(E$5:E$502,"=74") -> 35 | G18: 61 | H18: =COUNTIF(G$5:G$502,"=74") -> 41 | I18: 63 | J18: =COUNTIF(I$5:I$502,"=74") -> 54 | O18: 67.24 | P18: 0.1068325741
A19: 15 | B19: 64 | C19: 75 | D19: 4 | E19: 61 | F19: =COUNTIF(E$5:E$502,"=75") -> 21 | G19: 61 | H19: =COUNTIF(G$5:G$502,"=75") -> 43 | I19: 64 | J19: =COUNTIF(I$5:I$502,"=75") -> 62 | O19: 67.25 | P19: 0.1127683146
A20: 16 | B20: 64 | E20: 61 | G20: 61 | I20: 64 | O20: 67.26 | P20: 0.1189558595
A21: 17 | B21: 64 | E21: 61 | G21: 61 | I21: 64 | O21: 67.27 | P21: 0.1254006944
A22: 18 | B22: 64 | E22: 61 | G22: 61 | I22: 64 | O22: 67.28 | P22: 0.1321080848
A23: 19 | B23: 64 | E23: 61 | G23: 62 | I23: 64 | O23: 67.29 | P23: 0.1390830495
A24: 20 | B24: 65 | E24: 61 | G24: 62 | I24: 64 | O24: 67.3 | P24: 0.1463303344
A25: 21 | B25: 65 | E25: 61 | G25: 62 | I25: 64 | O25: 67.31 | P25: 0.1538543849
A26: 22 | B26: 65 | E26: 61 | G26: 62 | I26: 64 | O26: 67.32 | P26: 0.1616593188
A27: 23 | B27: 65 | E27: 61 | G27: 62 | I27: 64 | O27: 67.33 | P27: 0.1697488979
A28: 24 | B28: 65 | E28: 62 | G28: 62 | I28: 64 | O28: 67.34 | P28: 0.1781265002
A29: 25 | B29: 65 | E29: 62 | G29: 62 | I29: 64 | O29: 67.35 | P29: 0.1867950913
A30: 26 | B30: 65 | E30: 62 | G30: 62 | I30: 64 | O30: 67.36 | P30: 0.1957571964
A31: 27 | B31: 65 | E31: 62 | G31: 62 | I31: 64 | O31: 67.37 | P31: 0.2050148721
A32: 28 | B32: 65 | E32: 62 | G32: 62 | I32: 64 | O32: 67.38 | P32: 0.2145696779
A33: 29 | B33: 65 | E33: 62 | G33: 62 | I33: 64 | O33: 67.39 | P33: 0.2244226492
A34: 30 | B34: 65 | E34: 62 | G34: 62 | I34: 65 | O34: 67.4 | P34: 0.2345742698
A35: 31 | B35: 65 | E35: 62 | G35: 62 | I35: 65 | O35: 67.41 | P35: 0.2450244449
A36: 32 | B36: 65 | E36: 62 | G36: 62 | I36: 65 | O36: 67.42 | P36: 0.2557724761
A37: 33 | B37: 65 | E37: 62 | G37: 62 | I37: 65 | O37: 67.43 | P37: 0.2668170354
A38: 34 | B38: 66 | E38: 62 | G38: 62 | I38: 65 | O38: 67.44 | P38: 0.2781561418
A39: 35 | B39: 66 | E39: 62 | G39: 62 | I39: 65 | O39: 67.45 | P39: 0.2897871381
A40: 36 | B40: 66 | E40: 62 | G40: 62 | I40: 65 | O40: 67.46 | P40: 0.3017066694
A41: 37 | B41: 66 | E41: 62 | G41: 62 | I41: 65 | O41: 67.47 | P41: 0.3139106631
A42: 38 | B42: 66 | E42: 62 | G42: 62 | I42: 65 | O42: 67.48 | P42: 0.3263943097
A43: 39 | B43: 66 | E43: 62 | G43: 62 | I43: 65 | O43: 67.49 | P43: 0.3391520464
A44: 40 | B44: 66 | E44: 62 | G44: 62 | I44: 65 | O44: 67.5 | P44: 0.3521775418
A45: 41 | B45: 66 | E45: 62 | G45: 63 | I45: 66 | O45: 67.51 | P45: 0.3654636829
A46: 42 | B46: 66 | E46: 62 | G46: 63 | I46: 66 | O46: 67.52 | P46: 0.3790025639
A47: 43 | B47: 66 | E47: 62 | G47: 63 | I47: 66 | O47: 67.53 | P47: 0.3927854774
A48: 44 | B48: 66 | E48: 62 | G48: 63 | I48: 66 | O48: 67.54 | P48: 0.4068029083
A49: 45 | B49: 66 | E49: 62 | G49: 63 | I49: 66 | O49: 67.55 | P49: 0.4210445293
A50: 46 | B50: 66 | E50: 62 | G50: 63 | I50: 66 | O50: 67.56 | P50: 0.4354991998
A51: 47 | B51: 66 | E51: 62 | G51: 63 | I51: 66 | O51: 67.57 | P51: 0.4501549672
A52: 48 | B52: 66 | E52: 62 | G52: 63 | I52: 66 | O52: 67.58 | P52: 0.4649990705
A53: 49 | B53: 66 | E53: 62 | G53: 63 | I53: 66 | O53: 67.59 | P53: 0.4800179475
A54: 50 | B54: 66 | E54: 62 | G54: 63 | I54: 66 | O54: 67.6 | P54: 0.4951972442
A55: 51 | B55: 66 | E55: 62 | G55: 63 | I55: 67 | O55: 67.61 | P55: 0.5105218279
A56: 52 | B56: 66 | E56: 63 | G56: 63 | I56: 67 | O56: 67.62 | P56: 0.5259758022
A57: 53 | B57: 66 | E57: 63 | G57: 63 | I57: 67 | O57: 67.63 | P57: 0.5415425262
A58: 54 | B58: 66 | E58: 63 | G58: 63 | I58: 67 | O58: 67.64 | P58: 0.557204636
A59: 55 | B59: 66 | E59: 63 | G59: 63 | I59: 67 | O59: 67.65 | P59: 0.5729440697
A60: 56 | B60: 66 | E60: 63 | G60: 63 | I60: 67 | O60: 67.66 | P60: 0.5887420948
A61: 57 | B61: 66 | E61: 63 | G61: 63 | I61: 67 | O61: 67.67 | P61: 0.6045793394
A62: 58 | B62: 66 | E62: 63 | G62: 63 | I62: 67 | O62: 67.68 | P62: 0.620435826
A63: 59 | B63: 66 | E63: 63 | G63: 63 | I63: 67 | O63: 67.69 | P63: 0.6362910081
A64: 60 | B64: 66 | E64: 63 | G64: 63 | I64: 67 | O64: 67.7 | P64: 0.65212381
A65: 61 | B65: 67 | E65: 63 | G65: 63 | I65: 67 | O65: 67.71 | P65: =0.398942/EXP((O65-mean)^2/2/sd^2)/sd -> 0.6679126689
A66: 62 | B66: 67 | E66: 63 | G66: 63 | I66: 67 | O66: 67.72 | P66: 0.6836355806
A67: 63 | B67: 67 | E67: 63 | G67: 63 | I67: 67 | O67: =O66+0.01 -> 67.73 | P67: 0.6992701465
A68: 64 | B68: 67 | E68: 63 | G68: 63 | I68: 67 | O68: 67.74 | P68: 0.7147936239
A69: 65 | B69: 67 | E69: 63 | G69: 63 | I69: 67 | O69: 67.75 | P69: 0.7301829788
A70: 66 | B70: 67 | E70: 63 | G70: 63 | I70: 68 | O70: 67.76 | P70: 0.7454149399
A71: 67 | B71: 67 | E71: 63 | G71: 63 | I71: 68 | O71: 67.77 | P71: 0.7604660555
A72: 68 | B72: 67 | E72: 63 | G72: 63 | I72: 68 | O72: 67.78 | P72: 0.7753127515
A73: 69 | B73: 67 | E73: 63 | G73: 63 | I73: 68 | O73: 67.79 | P73: 0.7899313918
A74: 70 | B74: 67 | E74: 63 | G74: 63 | I74: 68 | O74: 67.8 | P74: 0.8042983392
A75: 71 | B75: 67 | E75: 64 | G75: 63 | I75: 68 | O75: 67.81 | P75: 0.818390018
A76: 72 | B76: 67 | E76: 64 | G76: 63 | I76: 68 | O76: 67.82 | P76: 0.8321829777
A77: 73 | B77: 67 | E77: 64 | G77: 63 | I77: 68 | O77: 67.83 | P77: 0.8456539568
A78: 74 | B78: 67 | E78: 64 | G78: 63 | I78: 68 | O78: 67.84 | P78: 0.8587799478
A79: 75 | B79: 67 | E79: 64 | G79: 63 | I79: 68 | O79: 67.85 | P79: 0.8715382618
A80: 76 | B80: 67 | E80: 64 | G80: 64 | I80: 68 | O80: 67.86 | P80: 0.8839065935
A81: 77 | B81: 67 | E81: 64 | G81: 64 | I81: 68 | O81: 67.87 | P81: 0.8958630859
A82: 78 | B82: 67 | E82: 64 | G82: 64 | I82: 68 | O82: 67.88 | P82: 0.907386394
A83: 79 | B83: 67 | E83: 64 | G83: 64 | I83: 68 | O83: 67.89 | P83: 0.9184557485
A84: 80 | B84: 67 | E84: 64 | G84: 64 | I84: 69 | O84: 67.9 | P84: 0.9290510174
A85: 81 | B85: 67 | E85: 64 | G85: 64 | I85: 69 | O85: 67.91 | P85: 0.9391527675
A86: 82 | B86: 67 | E86: 64 | G86: 64 | I86: 69 | O86: 67.92 | P86: 0.9487423231
A87: 83 | B87: 67 | E87: 64 | G87: 64 | I87: 69 | O87: 67.93 | P87: 0.9578018237
A88: 84 | B88: 67 | E88: 64 | G88: 64 | I88: 69 | O88: 67.94 | P88: 0.9663142795
A89: 85 | B89: 67 | E89: 64 | G89: 64 | I89: 69 | O89: 67.95 | P89: 0.9742636241
A90: 86 | B90: 67 | E90: 64 | G90: 64 | I90: 69 | O90: 67.96 | P90: 0.9816347654
A91: 87 | B91: 67 | E91: 64 | G91: 64 | I91: 69 | O91: 67.97 | P91: 0.9884136328
A92: 88 | B92: 67 | E92: 64 | G92: 64 | I92: 69 | O92: 67.98 | P92: 0.9945872225
A93: 89 | B93: 67 | E93: 64 | G93: 64 | I93: 69 | O93: 67.99 | P93: 1.000143639
A94: 90 | B94: 67 | E94: 64 | G94: 64 | I94: 69 | O94: 68 | P94: 1.005072132
A95: 91 | B95: 68 | E95: 64 | G95: 64 | I95: 69 | O95: 68.01 | P95: 1.009363134
A96: 92 | B96: 68 | E96: 64 | G96: 64 | I96: 69 | O96: 68.02 | P96: 1.013008287
A97: 93 | B97: 68 | E97: 64 | G97: 64 | I97: 69 | O97: 68.03 | P97: 1.016000474
A98: 94 | B98: 68 | E98: 64 | G98: 64 | I98: 69 | O98: 68.04 | P98: 1.01833384
A99: 95 | B99: 68 | E99: 65 | G99: 64 | I99: 69 | O99: 68.05 | P99: 1.02000381
A100: 96 | B100: 68 | E100: 65 | G100: 64 | I100: 69 | O100: 68.06 | P100: 1.021007106
A101: 97 | B101: 68 | E101: 65 | G101: 64 | I101: 69 | O101: 68.07 | P101: 1.021341758
A102: 98 | B102: 68 | E102: 65 | G102: 64 | I102: 69 | O102: 68.08 | P102: 1.021007106
A103: 99 | B103: 68 | E103: 65 | G103: 64 | I103: 69 | O103: 68.09 | P103: 1.02000381
A104: 100 | B104: 68 | E104: 65 | G104: 64 | I104: 69 | O104: 68.1 | P104: 1.01833384
A105: 101 | B105: 68 | E105: 65 | G105: 64 | I105: 69 | O105: 68.11 | P105: 1.016000474
A106: 102 | B106: 68 | E106: 65 | G106: 64 | I106: 69 | O106: 68.12 | P106: 1.013008287
A107: 103 | B107: 68 | E107: 65 | G107: 64 | I107: 70 | O107: 68.13 | P107: 1.009363134
A108: 104 | B108: 68 | E108: 65 | G108: 64 | I108: 70 | O108: 68.14 | P108: 1.005072132
A109: 105 | B109: 68 | E109: 65 | G109: 64 | I109: 70 | O109: 68.15 | P109: 1.000143639
A110: 106 | B110: 68 | E110: 65 | G110: 64 | I110: 70 | O110: 68.16 | P110: 0.9945872225
A111: 107 | B111: 68 | E111: 65 | G111: 64 | I111: 70 | O111: 68.17 | P111: 0.9884136328
A112: 108 | B112: 68 | E112: 65 | G112: 64 | I112: 70 | O112: 68.18 | P112: 0.9816347654
A113: 109 | B113: 68 | E113: 65 | G113: 64 | I113: 70 | O113: 68.19 | P113: 0.9742636241
A114: 110 | B114: 68 | E114: 65 | G114: 64 | I114: 70 | O114: 68.2 | P114: 0.9663142795
A115: 111 | B115: 68 | E115: 65 | G115: 64 | I115: 70 | O115: 68.21 | P115: 0.9578018237
A116: 112 | B116: 68 | E116: 65 | G116: 64 | I116: 70 | O116: 68.22 | P116: 0.9487423231
A117: 113 | B117: 68 | E117: 65 | G117: 64 | I117: 70 | O117: 68.23 | P117: 0.9391527675
A118: 114 | B118: 68 | E118: 65 | G118: 64 | I118: 70 | O118: 68.24 | P118: 0.9290510174
A119: 115 | B119: 68 | E119: 65 | G119: 64 | I119: 70 | O119: 68.25 | P119: 0.9184557485
A120: 116 | B120: 68 | E120: 65 | G120: 64 | I120: 70 | O120: 68.26 | P120: 0.907386394
A121: 117 | B121: 68 | E121: 65 | G121: 64 | I121: 70 | O121: 68.27 | P121: 0.8958630859
A122: 118 | B122: 68 | E122: 65 | G122: 64 | I122: 70 | O122: 68.28 | P122: 0.8839065935
A123: 119 | B123: 68 | E123: 65 | G123: 64 | I123: 70 | O123: 68.29 | P123: 0.8715382618
A124: 120 | B124: 68 | E124: 66 | G124: 65 | I124: 70 | O124: 68.3 | P124: 0.8587799478
A125: 121 | B125: 68 | E125: 66 | G125: 65 | I125: 70 | O125: 68.31 | P125: 0.8456539568
A126: 122 | B126: 68 | E126: 66 | G126: 65 | I126: 70 | O126: 68.32 | P126: 0.8321829777
A127: 123 | B127: 68 | E127: 66 | G127: 65 | I127: 71 | O127: 68.33 | P127: 0.818390018
A128: 124 | B128: 68 | E128: 66 | G128: 65 | I128: 71 | O128: 68.34 | P128: 0.8042983392
A129: 125 | B129: 68 | E129: 66 | G129: 65 | I129: 71 | O129: 68.35 | P129: =0.398942/EXP((O129-mean)^2/2/sd^2)/sd -> 0.7899313918
A130: 126 | B130: 69 | E130: 66 | G130: 65 | I130: 71 | O130: 68.36 | P130: 0.7753127515
A131: 127 | B131: 69 | E131: 66 | G131: 65 | I131: 71 | O131: =O130+0.01 -> 68.37 | P131: 0.7604660555
A132: 128 | B132: 69 | E132: 66 | G132: 65 | I132: 71 | O132: 68.38 | P132: 0.7454149399
A133: 129 | B133: 69 | E133: 66 | G133: 65 | I133: 71 | O133: 68.39 | P133: 0.7301829788
A134: 130 | B134: 69 | E134: 66 | G134: 65 | I134: 71 | O134: 68.4 | P134: 0.7147936239
A135: 131 | B135: 69 | E135: 66 | G135: 65 | I135: 71 | O135: 68.41 | P135: 0.6992701465
A136: 132 | B136: 69 | E136: 66 | G136: 65 | I136: 71 | O136: 68.42 | P136: 0.6836355806
A137: 133 | B137: 69 | E137: 66 | G137: 65 | I137: 71 | O137: 68.43 | P137: 0.6679126689
A138: 134 | B138: 69 | E138: 66 | G138: 65 | I138: 71 | O138: 68.44 | P138: 0.65212381
A139: 135 | B139: 69 | E139: 66 | G139: 65 | I139: 71 | O139: 68.45 | P139: 0.6362910081
A140: 136 | B140: 69 | E140: 66 | G140: 65 | I140: 71 | O140: 68.46 | P140: 0.620435826
A141: 137 | B141: 69 | E141: 66 | G141: 65 | I141: 71 | O141: 68.47 | P141: 0.6045793394
A142: 138 | B142: 69 | E142: 66 | G142: 65 | I142: 71 | O142: 68.48 | P142: 0.5887420948
A143: 139 | B143: 69 | E143: 66 | G143: 65 | I143: 71 | O143: 68.49 | P143: 0.5729440697
A144: 140 | B144: 69 | E144: 66 | G144: 65 | I144: 71 | O144: 68.5 | P144: 0.557204636
A145: 141 | B145: 69 | E145: 66 | G145: 65 | I145: 71 | O145: 68.51 | P145: 0.5415425262
A146: 142 | B146: 69 | E146: 66 | G146: 65 | I146: 71 | O146: 68.52 | P146: 0.5259758022
A147: 143 | B147: 69 | E147: 66 | G147: 65 | I147: 71 | O147: 68.53 | P147: 0.5105218279
A148: 144 | B148: 69 | E148: 66 | G148: 65 | I148: 71 | O148: 68.54 | P148: 0.4951972442
A149: 145 | B149: 69 | E149: 66 | G149: 65 | I149: 71 | O149: 68.55 | P149: 0.4800179475
A150: 146 | B150: 69 | E150: 66 | G150: 65 | I150: 71 | O150: 68.56 | P150: 0.4649990705
A151: 147 | B151: 69 | E151: 67 | G151: 65 | I151: 71 | O151: 68.57 | P151: 0.4501549672
A152: 148 | B152: 69 | E152: 67 | G152: 65 | I152: 71 | O152: 68.58 | P152: 0.4354991998
A153: 149 | B153: 69 | E153: 67 | G153: 65 | I153: 71 | O153: 68.59 | P153: 0.4210445293
A154: 150 | B154: 69 | E154: 67 | G154: 65 | I154: 71 | O154: 68.6 | P154: 0.4068029083
A155: 151 | B155: 69 | E155: 67 | G155: 65 | I155: 71 | O155: 68.61 | P155: 0.3927854774
A156: 152 | B156: 69 | E156: 67 | G156: 65 | I156: 71 | O156: 68.62 | P156: 0.3790025639
A157: 153 | B157: 69 | E157: 67 | G157: 65 | I157: 71 | O157: 68.63 | P157: 0.3654636829
A158: 154 | B158: 70 | E158: 67 | G158: 65 | I158: 71 | O158: 68.64 | P158: 0.3521775418
A159: 155 | B159: 70 | E159: 67 | G159: 65 | I159: 71 | O159: 68.65 | P159: 0.3391520464
A160: 156 | B160: 70 | E160: 67 | G160: 66 | I160: 71 | O160: 68.66 | P160: 0.3263943097
A161: 157 | B161: 70 | E161: 67 | G161: 66 | I161: 71 | O161: 68.67 | P161: 0.3139106631
A162: 158 | B162: 70 | E162: 67 | G162: 66 | I162: 71 | O162: 68.68 | P162: 0.3017066694
A163: 159 | B163: 70 | E163: 67 | G163: 66 | I163: 71 | O163: 68.69 | P163: 0.2897871381
A164: 160 | B164: 70 | E164: 67 | G164: 66 | I164: 71 | O164: 68.7 | P164: 0.2781561418
A165: 161 | B165: 70 | E165: 67 | G165: 66 | I165: 71 | O165: 68.71 | P165: 0.2668170354
A166: 162 | B166: 70 | E166: 67 | G166: 66 | I166: 71 | O166: 68.72 | P166: 0.2557724761
A167: 163 | B167: 70 | E167: 67 | G167: 66 | I167: 71 | O167: 68.73 | P167: 0.2450244449
A168: 164 | B168: 70 | E168: 67 | G168: 66 | I168: 71 | O168: 68.74 | P168: 0.2345742698
A169: 165 | B169: 70 | E169: 67 | G169: 66 | I169: 71 | O169: 68.75 | P169: 0.2244226492
A170: 166 | B170: 70 | E170: 67 | G170: 66 | I170: 71 | O170: 68.76 | P170: 0.2145696779
A171: 167 | B171: 70 | E171: 67 | G171: 66 | I171: 71 | O171: 68.77 | P171: 0.2050148721
A172: 168 | B172: 70 | E172: 68 | G172: 66 | I172: 71 | O172: 68.78 | P172: 0.1957571964
A173: 169 | B173: 70 | E173: 68 | G173: 66 | I173: 71 | O173: 68.79 | P173: 0.1867950913
A174: 170 | B174: 71 | E174: 68 | G174: 66 | I174: 71 | O174: 68.8 | P174: 0.1781265002
A175: 171 | B175: 71 | E175: 68 | G175: 66 | I175: 71 | O175: 68.81 | P175: 0.1697488979
A176: 172 | B176: 71 | E176: 68 | G176: 66 | I176: 71 | O176: 68.82 | P176: 0.1616593188
A177: 173 | B177: 71 | E177: 68 | G177: 66 | I177: 71 | O177: 68.83 | P177: 0.1538543849
A178: 174 | B178: 71 | E178: 68 | G178: 66 | I178: 71 | O178: 68.84 | P178: 0.1463303344
A179: 175 | B179: 71 | E179: 68 | G179: 66 | I179: 71 | O179: 68.85 | P179: 0.1390830495
A180: 176 | B180: 71 | E180: 68 | G180: 66 | I180: 71 | O180: 68.86 | P180: 0.1321080848
A181: 177 | B181: 71 | E181: 68 | G181: 67 | I181: 72 | O181: 68.87 | P181: 0.1254006944
A182: 178 | B182: 71 | E182: 68 | G182: 67 | I182: 72 | O182: 68.88 | P182: 0.1189558595
A183: 179 | B183: 71 | E183: 68 | G183: 67 | I183: 72 | O183: 68.89 | P183: 0.1127683146
A184: 180 | B184: 71 | E184: 68 | G184: 67 | I184: 72 | O184: 68.9 | P184: 0.1068325741
A185: 181 | B185: 71 | E185: 68 | G185: 67 | I185: 72 | O185: 68.91 | P185: 0.1011429576
A186: 182 | B186: 71 | E186: 68 | G186: 67 | I186: 72 | O186: 68.92 | P186: 0.09569361424
A187: 183 | B187: 71 | E187: 68 | G187: 67 | I187: 72 | O187: 68.93 | P187: 0.09047854734
A188: 184 | B188: 72 | E188: 68 | G188: 68 | I188: 72 | O188: 68.94 | P188: 0.08549163709
A189: 185 | B189: 72 | E189: 68 | G189: 68 | I189: 72 | O189: 68.95 | P189: 0.08072666304
A190: 186 | B190: 72 | E190: 68 | G190: 68 | I190: 72 | O190: 68.96 | P190: 0.0761773254
A191: 187 | B191: 72 | E191: 68 | G191: 68 | I191: 72 | O191: 68.97 | P191: 0.0718372656
A192: 188 | B192: 72 | E192: 68 | G192: 68 | I192: 72 | O192: 68.98 | P192: 0.0677000857
A193: 189 | B193: 72 | E193: 68 | G193: 68 | I193: 72 | O193: 68.99 | P193: =0.398942/EXP((O193-mean)^2/2/sd^2)/sd -> 0.06375936697
A194: 190 | B194: 72 | E194: 68 | G194: 68 | I194: 72 | O194: 69 | P194: 0.06000868742
A195: 191 | B195: 72 | E195: 68 | G195: 68 | I195: 72 | O195: =O194+0.01 -> 69.01 | P195: 0.05644163828
A196: 192 | B196: 72 | E196: 68 | G196: 69 | I196: 72 | O196: 69.02 | P196: 0.05305183956
A197: 193 | B197: 72 | E197: 68 | G197: 69 | I197: 72 | O197: 69.03 | P197: 0.04983295454
A198: 194 | B198: 73 | E198: 68 | G198: 69 | I198: 72 | O198: 69.04 | P198: 0.04677870327
A199: 195 | B199: 73 | E199: 68 | G199: 69 | I199: 72 | O199: 69.05 | P199: 0.04388287507
A200: 196 | B200: 73 | E200: 68 | G200: 69 | I200: 72 | O200: 69.06 | P200: 0.04113934009
... 228 more rows

Sheet samples
A1: =sampx(pop, popsize,newSample) -> 74 | B1: 68 | C1: 68 | D1: 71 | E1: 75 | F1: 69 | G1: 69 | H1: 73 | I1: 74 | J1: 67 | K1: =sampx(pop, popsize,newSample) -> 66 | L1: 64 | M1: 69 | N1: 66 | O1: 71 | P1: 69 | Q1: 71 | R1: 67 | S1: 67 | T1: 68 | U1: =sampx(pop, popsize,newSample) -> 62 | V1: 68 | W1: 72 | X1: 73 | Y1: 67 | Z1: 67 | AA1: 67 | AB1: 67 | AC1: 69 | AD1: 74 | AE1: =sampx(pop, popsize,newSample) -> 70 | AF1: 69 | AG1: 68 | AH1: 67 | AI1: 67 | AJ1: 67 | AK1: 67 | AL1: 65 | AM1: 68 | AN1: 66 | AO1: =sampx(pop, popsize,newSample) -> 70 | AP1: 68 | AQ1: 68 | AR1: 69 | AS1: 74 | AT1: 67 | AU1: 75 | AV1: 70 | AW1: 67 | AX1: 67 | AY1: =sampx(pop, popsize,newSample) -> 73 | AZ1: 71 | BA1: 73 | BB1: 67 | BC1: 68 | BD1: 67 | BE1: 67 | BF1: 65 | BG1: 71 | BH1: 64 | BI1: =sampx(pop, popsize,newSample) -> 67 | BJ1: 68 | BK1: 68 | BL1: 68 | BM1: 68 | BN1: 69 | BO1: 68 | BP1: 67 | BQ1: 64 | BR1: 69 | BS1: =sampx(pop, popsize,newSample) -> 68 | BT1: 71 | BU1: 66 | BV1: 69 | BW1: 68 | BX1: 68 | BY1: 66 | BZ1: 69 | CA1: 69 | CB1: 66 | CC1: 68 | CD1: 68 | CE1: 66 | CF1: 72 | CG1: 68 | CH1: 66 | CI1: =sampx(pop, popsize,newSample) -> 71 | CJ1: 65 | CK1: 68 | CL1: 66 | CM1: 69 | CN1: 68 | CO1: 68 | CP1: 74 | CQ1: 67 | CR1: 68 | CS1: 74 | CT1: 71 | CU1: 66 | CV1: 70
A2: 69 | B2: 66 | C2: 66 | D2: 69 | E2: 64 | F2: 68 | G2: 66 | H2: 74 | I2: 67 | J2: 68 | K2: 66 | L2: 73 | M2: 73 | N2: 70 | O2: 61 | P2: 66 | Q2: 65 | R2: 68 | S2: 71 | T2: 67 | U2: 67 | V2: 69 | W2: 65 | X2: 66 | Y2: 67 | Z2: 67 | AA2: 69 | AB2: 70 | AC2: 66 | AD2: 67 | AE2: 67 | AF2: 67 | AG2: 75 | AH2: 66 | AI2: 66 | AJ2: 70 | AK2: 66 | AL2: 61 | AM2: 74 | AN2: 69 | AO2: 74 | AP2: 69 | AQ2: 66 | AR2: 66 | AS2: 67 | AT2: 72 | AU2: 70 | AV2: 65 | AW2: 67 | AX2: 70 | AY2: 68 | AZ2: 67 | BA2: 72 | BB2: 67 | BC2: 67 | BD2: 64 | BE2: 67 | BF2: 67 | BG2: 66 | BH2: 65 | BI2: 68 | BJ2: 67 | BK2: 70 | BL2: 71 | BM2: 63 | BN2: 68 | BO2: 66 | BP2: 67 | BQ2: 67 | BR2: 68 | BS2: 63 | BT2: 68 | BU2: 66 | BV2: 68 | BW2: 68 | BX2: 67 | BY2: 65 | BZ2: 67 | CA2: 66 | CB2: 68 | CC2: 67 | CD2: 69 | CE2: 68 | CF2: 73 | CG2: 70 | CH2: 68 | CI2: 67 | CJ2: 67 | CK2: 64 | CL2: 62 | CM2: 68 | CN2: 67 | CO2: 70 | CP2: 67 | CQ2: 66 | CR2: 69 | CS2: 64 | CT2: 69 | CU2: 71 | CV2: 70
A3: 69 | B3: 61 | C3: 74 | D3: 68 | E3: 68 | F3: 61 | G3: 63 | H3: 66 | I3: 68 | J3: 67 | K3: 62 | L3: 69 | M3: 68 | N3: 66 | O3: 73 | P3: 74 | Q3: 66 | R3: 69 | S3: 68 | T3: 68 | U3: 66 | V3: 68 | W3: 67 | X3: 70 | Y3: 68 | Z3: 73 | AA3: 74 | AB3: 72 | AC3: 72 | AD3: 65 | AE3: 73 | AF3: 66 | AG3: 67 | AH3: 69 | AI3: 66 | AJ3: 67 | AK3: 69 | AL3: 62 | AM3: 74 | AN3: 66 | AO3: 68 | AP3: 70 | AQ3: 67 | AR3: 74 | AS3: 72 | AT3: 68 | AU3: 74 | AV3: 68 | AW3: 66 | AX3: 66 | AY3: 74 | AZ3: 74 | BA3: 61 | BB3: 68 | BC3: 67 | BD3: 66 | BE3: 64 | BF3: 73 | BG3: 65 | BH3: 65 | BI3: 68 | BJ3: 68 | BK3: 66 | BL3: 69 | BM3: 65 | BN3: 68 | BO3: 69 | BP3: 66 | BQ3: 73 | BR3: 63 | BS3: 71 | BT3: 64 | BU3: 64 | BV3: 65 | BW3: 67 | BX3: 68 | BY3: 66 | BZ3: 67 | CA3: 67 | CB3: 66 | CC3: 69 | CD3: 67 | CE3: 68 | CF3: 70 | CG3: 71 | CH3: 73 | CI3: 66 | CJ3: 66 | CK3: 68 | CL3: 69 | CM3: 69 | CN3: 68 | CO3: 68 | CP3: 67 | CQ3: 70 | CR3: 70 | CS3: 72 | CT3: 73 | CU3: 64 | CV3: 68
A4: 68 | B4: 71 | C4: 68 | D4: 68 | E4: 68 | F4: 67 | G4: 66 | H4: 68 | I4: 68 | J4: 71 | K4: 73 | L4: 72 | M4: 71 | N4: 65 | O4: 70 | P4: 69 | Q4: 66 | R4: 71 | S4: 67 | T4: 68 | U4: 68 | V4: 69 | W4: 74 | X4: 65 | Y4: 71 | Z4: 73 | AA4: 68 | AB4: 72 | AC4: 69 | AD4: 70 | AE4: 71 | AF4: 73 | AG4: 69 | AH4: 71 | AI4: 66 | AJ4: 69 | AK4: 68 | AL4: 62 | AM4: 67 | AN4: 66 | AO4: 69 | AP4: 68 | AQ4: 67 | AR4: 68 | AS4: 67 | AT4: 72 | AU4: 70 | AV4: 68 | AW4: 73 | AX4: 66 | AY4: 67 | AZ4: 71 | BA4: 67 | BB4: 64 | BC4: 73 | BD4: 69 | BE4: 70 | BF4: 70 | BG4: 65 | BH4: 65 | BI4: 74 | BJ4: 69 | BK4: 68 | BL4: 73 | BM4: 70 | BN4: 72 | BO4: 68 | BP4: 62 | BQ4: 69 | BR4: 72 | BS4: 71 | BT4: 73 | BU4: 72 | BV4: 63 | BW4: 74 | BX4: 64 | BY4: 66 | BZ4: 65 | CA4: 67 | CB4: 65 | CC4: 73 | CD4: 67 | CE4: 74 | CF4: 68 | CG4: 68 | CH4: 68 | CI4: 67 | CJ4: 68 | CK4: 66 | CL4: 67 | CM4: 67 | CN4: 66 | CO4: 65 | CP4: 66 | CQ4: 71 | CR4: 68 | CS4: 70 | CT4: 68 | CU4: 67 | CV4: 62
A5: 69 | B5: 71 | C5: 74 | D5: 68 | E5: 67 | F5: 67 | G5: 68 | H5: 72 | I5: 64 | J5: 65 | K5: 74 | L5: 70 | M5: 66 | N5: 67 | O5: 65 | P5: 66 | Q5: 68 | R5: 67 | S5: 70 | T5: 69 | U5: 66 | V5: 68 | W5: 71 | X5: 71 | Y5: 68 | Z5: 68 | AA5: 65 | AB5: 68 | AC5: 69 | AD5: 74 | AE5: 67 | AF5: 68 | AG5: 69 | AH5: 68 | AI5: 73 | AJ5: 66 | AK5: 69 | AL5: 71 | AM5: 69 | AN5: 73 | AO5: 69 | AP5: 70 | AQ5: 68 | AR5: 64 | AS5: 68 | AT5: 69 | AU5: 68 | AV5: 70 | AW5: 67 | AX5: 67 | AY5: 71 | AZ5: 69 | BA5: 72 | BB5: 69 | BC5: 69 | BD5: 66 | BE5: 68 | BF5: 69 | BG5: 68 | BH5: 74 | BI5: 69 | BJ5: 68 | BK5: 68 | BL5: 67 | BM5: 68 | BN5: 68 | BO5: 64 | BP5: 69 | BQ5: 75 | BR5: 73 | BS5: 70 | BT5: 66 | BU5: 67 | BV5: 67 | BW5: 66 | BX5: 67 | BY5: 62 | BZ5: 66 | CA5: 69 | CB5: 72 | CC5: 71 | CD5: 72 | CE5: 63 | CF5: 67 | CG5: 73 | CH5: 65 | CI5: 74 | CJ5: 62 | CK5: 66 | CL5: 65 | CM5: 64 | CN5: 69 | CO5: 72 | CP5: 66 | CQ5: 66 | CR5: 68 | CS5: 67 | CT5: 73 | CU5: 68 | CV5: 67
A6: 69 | B6: 66 | C6: 68 | D6: 70 | E6: 68 | F6: 70 | G6: 69 | H6: 69 | I6: 72 | J6: 68 | K6: 69 | L6: 67 | M6: 69 | N6: 71 | O6: 62 | P6: 66 | Q6: 67 | R6: 71 | S6: 64 | T6: 67 | U6: 68 | V6: 65 | W6: 68 | X6: 70 | Y6: 70 | Z6: 74 | AA6: 74 | AB6: 67 | AC6: 70 | AD6: 67 | AE6: 67 | AF6: 67 | AG6: 66 | AH6: 72 | AI6: 68 | AJ6: 73 | AK6: 69 | AL6: 66 | AM6: 70 | AN6: 66 | AO6: 68 | AP6: 65 | AQ6: 67 | AR6: 68 | AS6: 66 | AT6: 70 | AU6: 70 | AV6: 67 | AW6: 65 | AX6: 66 | AY6: 67 | AZ6: 68 | BA6: 67 | BB6: 68 | BC6: 67 | BD6: 66 | BE6: 68 | BF6: 66 | BG6: 68 | BH6: 68 | BI6: 61 | BJ6: 67 | BK6: 69 | BL6: 69 | BM6: 67 | BN6: 68 | BO6: 62 | BP6: 68 | BQ6: 69 | BR6: 68 | BS6: 68 | BT6: 71 | BU6: 68 | BV6: 72 | BW6: 72 | BX6: 69 | BY6: 74 | BZ6: 71 | CA6: 73 | CB6: 73 | CC6: 67 | CD6: 64 | CE6: 70 | CF6: 65 | CG6: 66 | CH6: 73 | CI6: 64 | CJ6: 68 | CK6: 71 | CL6: 70 | CM6: 70 | CN6: 70 | CO6: 67 | CP6: 66 | CQ6: 65 | CR6: 69 | CS6: 69 | CT6: 66 | CU6: 70 | CV6: 67
A7: 68 | B7: 69 | C7: 69 | D7: 68 | E7: 68 | F7: 66 | G7: 65 | H7: 69 | I7: 67 | J7: 69 | K7: 74 | L7: 62 | M7: 67 | N7: 66 | O7: 68 | P7: 73 | Q7: 66 | R7: 65 | S7: 63 | T7: 69 | U7: 66 | V7: 70 | W7: 64 | X7: 69 | Y7: 68 | Z7: 63 | AA7: 66 | AB7: 65 | AC7: 65 | AD7: 70 | AE7: 67 | AF7: 64 | AG7: 67 | AH7: 67 | AI7: 74 | AJ7: 67 | AK7: 75 | AL7: 67 | AM7: 69 | AN7: 72 | AO7: 67 | AP7: 66 | AQ7: 63 | AR7: 62 | AS7: 69 | AT7: 68 | AU7: 68 | AV7: 68 | AW7: 66 | AX7: 67 | AY7: 71 | AZ7: 69 | BA7: 65 | BB7: 65 | BC7: 68 | BD7: 67 | BE7: 73 | BF7: 66 | BG7: 70 | BH7: 69 | BI7: 67 | BJ7: 72 | BK7: 61 | BL7: 69 | BM7: 69 | BN7: 72 | BO7: 65 | BP7: 66 | BQ7: 72 | BR7: 66 | BS7: 74 | BT7: 67 | BU7: 66 | BV7: 73 | BW7: 69 | BX7: 68 | BY7: 67 | BZ7: 66 | CA7: 68 | CB7: 67 | CC7: 67 | CD7: 68 | CE7: 75 | CF7: 72 | CG7: 70 | CH7: 70 | CI7: 64 | CJ7: 72 | CK7: 68 | CL7: 70 | CM7: 67 | CN7: 70 | CO7: 66 | CP7: 69 | CQ7: 69 | CR7: 74 | CS7: 72 | CT7: 67 | CU7: 65 | CV7: 71
A8: 67 | B8: 72 | C8: 69 | D8: 66 | E8: 69 | F8: 68 | G8: 66 | H8: 68 | I8: 67 | J8: 65 | K8: 65 | L8: 67 | M8: 74 | N8: 68 | O8: 65 | P8: 67 | Q8: 68 | R8: 66 | S8: 66 | T8: 70 | U8: 67 | V8: 69 | W8: 72 | X8: 68 | Y8: 68 | Z8: 68 | AA8: 71 | AB8: 67 | AC8: 66 | AD8: 68 | AE8: 68 | AF8: 71 | AG8: 68 | AH8: 64 | AI8: 68 | AJ8: 69 | AK8: 65 | AL8: 69 | AM8: 65 | AN8: 62 | AO8: 66 | AP8: 66 | AQ8: 66 | AR8: 69 | AS8: 68 | AT8: 61 | AU8: 69 | AV8: 67 | AW8: 69 | AX8: 67 | AY8: 67 | AZ8: 64 | BA8: 66 | BB8: 70 | BC8: 68 | BD8: 62 | BE8: 72 | BF8: 66 | BG8: 66 | BH8: 73 | BI8: 68 | BJ8: 70 | BK8: 66 | BL8: 66 | BM8: 68 | BN8: 69 | BO8: 65 | BP8: 66 | BQ8: 66 | BR8: 70 | BS8: 69 | BT8: 67 | BU8: 68 | BV8: 62 | BW8: 66 | BX8: 65 | BY8: 67 | BZ8: 67 | CA8: 70 | CB8: 69 | CC8: 65 | CD8: 71 | CE8: 69 | CF8: 67 | CG8: 69 | CH8: 72 | CI8: 64 | CJ8: 62 | CK8: 68 | CL8: 67 | CM8: 66 | CN8: 72 | CO8: 66 | CP8: 66 | CQ8: 67 | CR8: 67 | CS8: 62 | CT8: 71 | CU8: 71 | CV8: 67
A9: 66 | B9: 71 | C9: 67 | D9: 69 | E9: 68 | F9: 71 | G9: 62 | H9: 68 | I9: 69 | J9: 64 | K9: 66 | L9: 71 | M9: 66 | N9: 62 | O9: 71 | P9: 65 | Q9: 68 | R9: 66 | S9: 69 | T9: 68 | U9: 68 | V9: 64 | W9: 69 | X9: 68 | Y9: 69 | Z9: 68 | AA9: 66 | AB9: 66 | AC9: 66 | AD9: 69 | AE9: 69 | AF9: 65 | AG9: 67 | AH9: 66 | AI9: 69 | AJ9: 69 | AK9: 73 | AL9: 74 | AM9: 71 | AN9: 68 | AO9: 68 | AP9: 69 | AQ9: 68 | AR9: 64 | AS9: 71 | AT9: 70 | AU9: 68 | AV9: 71 | AW9: 68 | AX9: 71 | AY9: 69 | AZ9: 66 | BA9: 67 | BB9: 73 | BC9: 67 | BD9: 69 | BE9: 66 | BF9: 67 | BG9: 70 | BH9: 70 | BI9: 68 | BJ9: 65 | BK9: 65 | BL9: 66 | BM9: 72 | BN9: 67 | BO9: 72 | BP9: 69 | BQ9: 67 | BR9: 71 | BS9: 67 | BT9: 62 | BU9: 69 | BV9: 70 | BW9: 68 | BX9: 65 | BY9: 69 | BZ9: 67 | CA9: 64 | CB9: 68 | CC9: 67 | CD9: 68 | CE9: 66 | CF9: 72 | CG9: 69 | CH9: 72 | CI9: 66 | CJ9: 67 | CK9: 74 | CL9: 67 | CM9: 71 | CN9: 61 | CO9: 71 | CP9: 69 | CQ9: 67 | CR9: 68 | CS9: 68 | CT9: 68 | CU9: 62 | CV9: 70
A10: 67 | B10: 61 | C10: 68 | D10: 72 | E10: 63 | F10: 69 | G10: 71 | H10: 72 | I10: 67 | J10: 68 | K10: 68 | L10: 68 | M10: 66 | N10: 66 | O10: 74 | P10: 71 | Q10: 71 | R10: 66 | S10: 64 | T10: 67 | U10: 68 | V10: 67 | W10: 68 | X10: 73 | Y10: 68 | Z10: 67 | AA10: 68 | AB10: 67 | AC10: 69 | AD10: 71 | AE10: 69 | AF10: 68 | AG10: 67 | AH10: 75 | AI10: 68 | AJ10: 62 | AK10: 71 | AL10: 68 | AM10: 70 | AN10: 69 | AO10: 66 | AP10: 72 | AQ10: 69 | AR10: 71 | AS10: 70 | AT10: 65 | AU10: 73 | AV10: 69 | AW10: 63 | AX10: 68 | AY10: 69 | AZ10: 67 | BA10: 74 | BB10: 66 | BC10: 68 | BD10: 66 | BE10: 71 | BF10: 70 | BG10: 64 | BH10: 69 | BI10: 66 | BJ10: 69 | BK10: 71 | BL10: 69 | BM10: 64 | BN10: 73 | BO10: 68 | BP10: 68 | BQ10: 63 | BR10: 69 | BS10: 64 | BT10: 73 | BU10: 68 | BV10: 69 | BW10: 71 | BX10: 66 | BY10: 73 | BZ10: 63 | CA10: 66 | CB10: 69 | CC10: 62 | CD10: 69 | CE10: 70 | CF10: 65 | CG10: 70 | CH10: 69 | CI10: 68 | CJ10: 69 | CK10: 70 | CL10: 68 | CM10: 66 | CN10: 70 | CO10: 67 | CP10: 66 | CQ10: 72 | CR10: 69 | CS10: 68 | CT10: 71 | CU10: 67 | CV10: 68
A11: =sampx(pop, popsize,newSample) -> 67 | B11: 68 | C11: 66 | D11: 67 | E11: 71 | F11: 68 | G11: 65 | H11: 67 | I11: 72 | J11: 69 | K11: =sampx(pop, popsize,newSample) -> 75 | L11: 69 | M11: 62 | N11: 68 | O11: 72 | P11: 68 | Q11: 72 | R11: 66 | S11: 66 | T11: 68 | U11: =sampx(pop, popsize,newSample) -> 68 | V11: 72 | W11: 66 | X11: 69 | Y11: 73 | Z11: 69 | AA11: 68 | AB11: 69 | AC11: 61 | AD11: 67 | AE11: =sampx(pop, popsize,newSample) -> 68 | AF11: 71 | AG11: 69 | AH11: 61 | AI11: 63 | AJ11: 71 | AK11: 67 | AL11: 67 | AM11: 65 | AN11: 66 | AO11: =sampx(pop, popsize,newSample) -> 65 | AP11: 69 | AQ11: 65 | AR11: 68 | AS11: 68 | AT11: 71 | AU11: 69 | AV11: 68 | AW11: 66 | AX11: 73 | AY11: =sampx(pop, popsize,newSample) -> 67 | AZ11: 67 | BA11: 65 | BB11: 67 | BC11: 64 | BD11: 65 | BE11: 67 | BF11: 66 | BG11: 67 | BH11: 71 | BI11: =sampx(pop, popsize,newSample) -> 66 | BJ11: 68 | BK11: 72 | BL11: 71 | BM11: 72 | BN11: 68 | BO11: 73 | BP11: 65 | BQ11: 73 | BR11: 69 | BS11: =sampx(pop, popsize,newSample) -> 65 | BT11: 65 | BU11: 70 | BV11: 68 | BW11: 68 | BX11: 69 | BY11: 69 | BZ11: 68 | CA11: 74 | CB11: 70 | CC11: 69 | CD11: 62 | CE11: 71 | CF11: 68 | CG11: 66 | CH11: 68 | CI11: 69 | CJ11: 68 | CK11: 66 | CL11: 67 | CM11: 62 | CN11: 70 | CO11: 69 | CP11: 66 | CQ11: 69 | CR11: 68 | CS11: 68 | CT11: 71 | CU11: 63 | CV11: 71
A12: 72 | B12: 69 | C12: 67 | D12: 73 | E12: 66 | F12: 70 | G12: 68 | H12: 65 | I12: 70 | J12: 68 | K12: 72 | L12: 68 | M12: 74 | N12: 68 | O12: 66 | P12: 66 | Q12: 71 | R12: 67 | S12: 72 | T12: 72 | U12: 65 | V12: 69 | W12: 64 | X12: 68 | Y12: 69 | Z12: 70 | AA12: 68 | AB12: 67 | AC12: 69 | AD12: 66 | AE12: 68 | AF12: 69 | AG12: 72 | AH12: 69 | AI12: 68 | AJ12: 65 | AK12: 72 | AL12: 68 | AM12: 73 | AN12: 65 | AO12: 68 | AP12: 68 | AQ12: 69 | AR12: 66 | AS12: 62 | AT12: 66 | AU12: 73 | AV12: 68 | AW12: 71 | AX12: 67 | AY12: 73 | AZ12: 65 | BA12: 69 | BB12: 74 | BC12: 66 | BD12: 70 | BE12: 66 | BF12: 69 | BG12: 72 | BH12: 68 | BI12: 69 | BJ12: 73 | BK12: 69 | BL12: 75 | BM12: 66 | BN12: 67 | BO12: 63 | BP12: 70 | BQ12: 66 | BR12: 67 | BS12: 64 | BT12: 72 | BU12: 68 | BV12: 67 | BW12: 67 | BX12: 67 | BY12: 68 | BZ12: 72 | CA12: 69 | CB12: 72 | CC12: 68 | CD12: 62 | CE12: 68 | CF12: 66 | CG12: 71 | CH12: 70 | CI12: 69 | CJ12: 67 | CK12: 70 | CL12: 68 | CM12: 72 | CN12: 69 | CO12: 66 | CP12: 66 | CQ12: 70 | CR12: 68 | CS12: 62 | CT12: 66 | CU12: 66 | CV12: 69
A13: 73 | B13: 67 | C13: 69 | D13: 67 | E13: 67 | F13: 67 | G13: 67 | H13: 69 | I13: 68 | J13: 66 | K13: 68 | L13: 64 | M13: 71 | N13: 71 | O13: 67 | P13: 69 | Q13: 65 | R13: 62 | S13: 66 | T13: 70 | U13: 73 | V13: 68 | W13: 68 | X13: 65 | Y13: 67 | Z13: 65 | AA13: 62 | AB13: 65 | AC13: 66 | AD13: 66 | AE13: 68 | AF13: 72 | AG13: 68 | AH13: 68 | AI13: 70 | AJ13: 68 | AK13: 69 | AL13: 68 | AM13: 69 | AN13: 68 | AO13: 68 | AP13: 69 | AQ13: 70 | AR13: 67 | AS13: 66 | AT13: 62 | AU13: 68 | AV13: 65 | AW13: 69 | AX13: 68 | AY13: 73 | AZ13: 74 | BA13: 65 | BB13: 67 | BC13: 71 | BD13: 63 | BE13: 64 | BF13: 68 | BG13: 69 | BH13: 65 | BI13: 66 | BJ13: 70 | BK13: 69 | BL13: 68 | BM13: 66 | BN13: 61 | BO13: 73 | BP13: 75 | BQ13: 67 | BR13: 74 | BS13: 68 | BT13: 66 | BU13: 61 | BV13: 66 | BW13: 72 | BX13: 71 | BY13: 72 | BZ13: 68 | CA13: 67 | CB13: 67 | CC13: 65 | CD13: 72 | CE13: 66 | CF13: 67 | CG13: 73 | CH13: 67 | CI13: 69 | CJ13: 65 | CK13: 66 | CL13: 65 | CM13: 69 | CN13: 63 | CO13: 72 | CP13: 71 | CQ13: 74 | CR13: 67 | CS13: 67 | CT13: 67 | CU13: 70 | CV13: 68
A14: 69 | B14: 69 | C14: 69 | D14: 66 | E14: 66 | F14: 66 | G14: 70 | H14: 68 | I14: 69 | J14: 67 | K14: 67 | L14: 67 | M14: 69 | N14: 66 | O14: 68 | P14: 68 | Q14: 68 | R14: 68 | S14: 68 | T14: 72 | U14: 65 | V14: 71 | W14: 67 | X14: 66 | Y14: 66 | Z14: 69 | AA14: 69 | AB14: 66 | AC14: 67 | AD14: 69 | AE14: 74 | AF14: 70 | AG14: 68 | AH14: 69 | AI14: 69 | AJ14: 68 | AK14: 68 | AL14: 72 | AM14: 62 | AN14: 66 | AO14: 68 | AP14: 65 | AQ14: 64 | AR14: 67 | AS14: 73 | AT14: 69 | AU14: 68 | AV14: 66 | AW14: 72 | AX14: 66 | AY14: 68 | AZ14: 69 | BA14: 63 | BB14: 65 | BC14: 70 | BD14: 66 | BE14: 69 | BF14: 66 | BG14: 67 | BH14: 66 | BI14: 61 | BJ14: 67 | BK14: 69 | BL14: 64 | BM14: 66 | BN14: 70 | BO14: 69 | BP14: 73 | BQ14: 72 | BR14: 70 | BS14: 65 | BT14: 69 | BU14: 67 | BV14: 64 | BW14: 68 | BX14: 62 | BY14: 66 | BZ14: 65 | CA14: 62 | CB14: 68 | CC14: 71 | CD14: 68 | CE14: 61 | CF14: 71 | CG14: 67 | CH14: 65 | CI14: 70 | CJ14: =sampx(pop, popsize,newSample) -> 66 | CK14: 68 | CL14: 68 | CM14: 65 | CN14: 71 | CO14: 67 | CP14: 65 | CQ14: 68 | CR14: 66 | CS14: 67 | CT14: 66 | CU14: 67 | CV14: 73
A15: 68 | B15: 65 | C15: 73 | D15: 62 | E15: 68 | F15: 68 | G15: 67 | H15: 68 | I15: 66 | J15: 65 | K15: 70 | L15: 68 | M15: 67 | N15: 68 | O15: 66 | P15: 66 | Q15: 70 | R15: 72 | S15: 68 | T15: 67 | U15: 65 | V15: 66 | W15: 70 | X15: 69 | Y15: 73 | Z15: 69 | AA15: 67 | AB15: 73 | AC15: 71 | AD15: 70 | AE15: 72 | AF15: 73 | AG15: 73 | AH15: 65 | AI15: 71 | AJ15: 73 | AK15: 68 | AL15: 66 | AM15: 64 | AN15: 64 | AO15: 72 | AP15: 71 | AQ15: 65 | AR15: 71 | AS15: 71 | AT15: 73 | AU15: 66 | AV15: 69 | AW15: 63 | AX15: 68 | AY15: 69 | AZ15: 75 | BA15: 64 | BB15: 65 | BC15: 67 | BD15: 67 | BE15: 62 | BF15: 65 | BG15: 70 | BH15: 66 | BI15: 67 | BJ15: 68 | BK15: 73 | BL15: 72 | BM15: 67 | BN15: 67 | BO15: 69 | BP15: 71 | BQ15: 66 | BR15: 71 | BS15: 65 | BT15: 68 | BU15: 66 | BV15: 67 | BW15: 66 | BX15: 72 | BY15: 67 | BZ15: 66 | CA15: 69 | CB15: 74 | CC15: 68 | CD15: 63 | CE15: 68 | CF15: 66 | CG15: 67 | CH15: 67 | CI15: 62 | CJ15: 66 | CK15: 68 | CL15: 68 | CM15: 68 | CN15: 72 | CO15: 70 | CP15: 71 | CQ15: 66 | CR15: 67 | CS15: 68 | CT15: 72 | CU15: 68 | CV15: 66
A16: 68 | B16: 70 | C16: 68 | D16: 67 | E16: 67 | F16: 69 | G16: 68 | H16: 65 | I16: 72 | J16: 69 | K16: 68 | L16: 69 | M16: 70 | N16: 68 | O16: 65 | P16: 69 | Q16: 62 | R16: 69 | S16: 66 | T16: 65 | U16: 66 | V16: 67 | W16: 69 | X16: 67 | Y16: 65 | Z16: 68 | AA16: 66 | AB16: 66 | AC16: 65 | AD16: 67 | AE16: 62 | AF16: 66 | AG16: 66 | AH16: 66 | AI16: 68 | AJ16: 72 | AK16: 62 | AL16: 64 | AM16: 67 | AN16: 66 | AO16: 66 | AP16: 71 | AQ16: 68 | AR16: 61 | AS16: 64 | AT16: 67 | AU16: 67 | AV16: 68 | AW16: 71 | AX16: 62 | AY16: 70 | AZ16: 72 | BA16: 64 | BB16: 69 | BC16: 66 | BD16: 68 | BE16: 67 | BF16: 68 | BG16: 69 | BH16: 65 | BI16: 72 | BJ16: 69 | BK16: 71 | BL16: 66 | BM16: 74 | BN16: 66 | BO16: 66 | BP16: 68 | BQ16: 66 | BR16: 68 | BS16: 74 | BT16: 69 | BU16: 65 | BV16: 71 | BW16: 67 | BX16: 72 | BY16: 67 | BZ16: 68 | CA16: 66 | CB16: 70 | CC16: 69 | CD16: 66 | CE16: 62 | CF16: 71 | CG16: 70 | CH16: 63 | CI16: 65 | CJ16: 67 | CK16: 64 | CL16: 72 | CM16: 61 | CN16: 66 | CO16: 65 | CP16: 68 | CQ16: 74 | CR16: 67 | CS16: 70 | CT16: 67 | CU16: 69 | CV16: 72
A17: 67 | B17: 65 | C17: 72 | D17: 66 | E17: 68 | F17: 71 | G17: 68 | H17: 75 | I17: 69 | J17: 68 | K17: 69 | L17: 65 | M17: 68 | N17: 68 | O17: 64 | P17: 67 | Q17: 62 | R17: 68 | S17: 68 | T17: 66 | U17: 66 | V17: 65 | W17: 68 | X17: 66 | Y17: 67 | Z17: 67 | AA17: 68 | AB17: 68 | AC17: 62 | AD17: 61 | AE17: 68 | AF17: 68 | AG17: 75 | AH17: 62 | AI17: 71 | AJ17: 67 | AK17: 67 | AL17: 69 | AM17: 65 | AN17: 68 | AO17: 66 | AP17: 66 | AQ17: 71 | AR17: 69 | AS17: 63 | AT17: 71 | AU17: 63 | AV17: 74 | AW17: 69 | AX17: 69 | AY17: 63 | AZ17: 70 | BA17: 70 | BB17: 68 | BC17: 67 | BD17: 70 | BE17: 68 | BF17: 67 | BG17: 69 | BH17: 68 | BI17: 71 | BJ17: 66 | BK17: 69 | BL17: 65 | BM17: 61 | BN17: 69 | BO17: 66 | BP17: 68 | BQ17: 66 | BR17: 66 | BS17: 70 | BT17: 74 | BU17: 65 | BV17: 68 | BW17: 68 | BX17: 66 | BY17: 68 | BZ17: 67 | CA17: 69 | CB17: 69 | CC17: 67 | CD17: 71 | CE17: 72 | CF17: 70 | CG17: 67 | CH17: 68 | CI17: 71 | CJ17: 68 | CK17: 69 | CL17: 71 | CM17: 66 | CN17: 71 | CO17: 70 | CP17: 70 | CQ17: 65 | CR17: 67 | CS17: 69 | CT17: 66 | CU17: 68 | CV17: 69
A18: 68 | B18: 68 | C18: 69 | D18: 64 | E18: 70 | F18: 71 | G18: 66 | H18: 67 | I18: 68 | J18: 70 | K18: 66 | L18: 64 | M18: 71 | N18: 70 | O18: 68 | P18: 67 | Q18: 67 | R18: 70 | S18: 71 | T18: 69 | U18: 64 | V18: 75 | W18: 67 | X18: 68 | Y18: 68 | Z18: 73 | AA18: 69 | AB18: 69 | AC18: 73 | AD18: 69 | AE18: 73 | AF18: 71 | AG18: 69 | AH18: 67 | AI18: 66 | AJ18: 68 | AK18: 66 | AL18: 69 | AM18: 65 | AN18: 70 | AO18: 68 | AP18: 69 | AQ18: 64 | AR18: 69 | AS18: 71 | AT18: 68 | AU18: 68 | AV18: 66 | AW18: 69 | AX18: 67 | AY18: 69 | AZ18: 68 | BA18: 72 | BB18: 71 | BC18: 71 | BD18: 69 | BE18: 64 | BF18: 69 | BG18: 66 | BH18: 71 | BI18: 73 | BJ18: 67 | BK18: 68 | BL18: 69 | BM18: 67 | BN18: 67 | BO18: 62 | BP18: 68 | BQ18: 67 | BR18: 64 | BS18: 70 | BT18: 62 | BU18: 68 | BV18: 66 | BW18: 67 | BX18: 68 | BY18: 70 | BZ18: 74 | CA18: 69 | CB18: 66 | CC18: 66 | CD18: 68 | CE18: 71 | CF18: 66 | CG18: 69 | CH18: 65 | CI18: 66 | CJ18: 68 | CK18: 72 | CL18: 69 | CM18: 68 | CN18: 64 | CO18: 67 | CP18: 70 | CQ18: 62 | CR18: 64 | CS18: 68 | CT18: 62 | CU18: 66 | CV18: 71
A19: 64 | B19: 67 | C19: 68 | D19: 70 | E19: 68 | F19: 64 | G19: 62 | H19: 67 | I19: 74 | J19: 67 | K19: 67 | L19: 68 | M19: 65 | N19: 62 | O19: 65 | P19: 69 | Q19: 71 | R19: 64 | S19: 62 | T19: 70 | U19: 71 | V19: 72 | W19: 68 | X19: 65 | Y19: 71 | Z19: 74 | AA19: 68 | AB19: 65 | AC19: 68 | AD19: 66 | AE19: 68 | AF19: 64 | AG19: 66 | AH19: 68 | AI19: 67 | AJ19: 72 | AK19: 68 | AL19: 67 | AM19: 68 | AN19: 67 | AO19: 66 | AP19: 67 | AQ19: 68 | AR19: 73 | AS19: 67 | AT19: 73 | AU19: 65 | AV19: 71 | AW19: 66 | AX19: 61 | AY19: 66 | AZ19: 66 | BA19: 69 | BB19: 66 | BC19: 65 | BD19: 63 | BE19: 67 | BF19: 70 | BG19: 66 | BH19: 67 | BI19: 69 | BJ19: 67 | BK19: 71 | BL19: 73 | BM19: 68 | BN19: 75 | BO19: 68 | BP19: 66 | BQ19: 67 | BR19: 68 | BS19: 68 | BT19: 72 | BU19: 68 | BV19: 69 | BW19: 74 | BX19: 66 | BY19: 66 | BZ19: 68 | CA19: 68 | CB19: 71 | CC19: 67 | CD19: 73 | CE19: 67 | CF19: 68 | CG19: 74 | CH19: 66 | CI19: 73 | CJ19: 67 | CK19: 66 | CL19: 72 | CM19: 73 | CN19: 69 | CO19: 62 | CP19: 70 | CQ19: 69 | CR19: 68 | CS19: 67 | CT19: 74 | CU19: 63 | CV19: 72
A20: 67 | B20: 74 | C20: 65 | D20: 68 | E20: 66 | F20: 66 | G20: 68 | H20: 68 | I20: 66 | J20: 66 | K20: 68 | L20: 67 | M20: 67 | N20: 67 | O20: 72 | P20: 68 | Q20: 68 | R20: 67 | S20: 68 | T20: 71 | U20: 68 | V20: 69 | W20: 68 | X20: 73 | Y20: 67 | Z20: 65 | AA20: 73 | AB20: 64 | AC20: 62 | AD20: 67 | AE20: 68 | AF20: 68 | AG20: 69 | AH20: 68 | AI20: 69 | AJ20: 65 | AK20: 69 | AL20: 66 | AM20: 69 | AN20: 67 | AO20: 63 | AP20: 66 | AQ20: 67 | AR20: 68 | AS20: 65 | AT20: 68 | AU20: 69 | AV20: 73 | AW20: 68 | AX20: 68 | AY20: 75 | AZ20: 74 | BA20: 67 | BB20: 61 | BC20: 67 | BD20: 63 | BE20: 68 | BF20: 64 | BG20: 66 | BH20: 66 | BI20: 69 | BJ20: 75 | BK20: 65 | BL20: 73 | BM20: 62 | BN20: 67 | BO20: 67 | BP20: 74 | BQ20: 71 | BR20: 69 | BS20: 71 | BT20: 68 | BU20: 68 | BV20: 72 | BW20: 66 | BX20: 70 | BY20: 68 | BZ20: 67 | CA20: 67 | CB20: 65 | CC20: 69 | CD20: 70 | CE20: 71 | CF20: 72 | CG20: 73 | CH20: 63 | CI20: 73 | CJ20: 69 | CK20: 69 | CL20: 75 | CM20: 67 | CN20: 66 | CO20: 65 | CP20: 71 | CQ20: 69 | CR20: 66 | CS20: 72 | CT20: 66 | CU20: 65 | CV20: 66
A21: =sampx(pop, popsize,newSample) -> 68 | B21: 72 | C21: 66 | D21: 68 | E21: 67 | F21: 63 | G21: 68 | H21: 74 | I21: 69 | J21: 65 | K21: =sampx(pop, popsize,newSample) -> 68 | L21: 66 | M21: 68 | N21: 62 | O21: 64 | P21: 68 | Q21: 74 | R21: 67 | S21: 70 | T21: 68 | U21: =sampx(pop, popsize,newSample) -> 66 | V21: 67 | W21: 69 | X21: 73 | Y21: 74 | Z21: 74 | AA21: 64 | AB21: 69 | AC21: 70 | AD21: 68 | AE21: =sampx(pop, popsize,newSample) -> 69 | AF21: 66 | AG21: 64 | AH21: 72 | AI21: 65 | AJ21: 67 | AK21: 67 | AL21: 69 | AM21: 66 | AN21: 68 | AO21: =sampx(pop, popsize,newSample) -> 68 | AP21: 74 | AQ21: 69 | AR21: 65 | AS21: 68 | AT21: 65 | AU21: 69 | AV21: 68 | AW21: 72 | AX21: 68 | AY21: =sampx(pop, popsize,newSample) -> 61 | AZ21: 74 | BA21: 68 | BB21: 66 | BC21: 69 | BD21: 67 | BE21: 68 | BF21: 66 | BG21: 66 | BH21: 66 | BI21: =sampx(pop, popsize,newSample) -> 67 | BJ21: 71 | BK21: 67 | BL21: 72 | BM21: 69 | BN21: 70 | BO21: 67 | BP21: 69 | BQ21: 70 | BR21: 68 | BS21: =sampx(pop, popsize,newSample) -> 66 | BT21: 62 | BU21: 67 | BV21: 67 | BW21: 66 | BX21: 69 | BY21: 65 | BZ21: 71 | CA21: 71 | CB21: 66 | CC21: 67 | CD21: 69 | CE21: 67 | CF21: 69 | CG21: 68 | CH21: 64 | CI21: 71 | CJ21: 67 | CK21: 68 | CL21: 68 | CM21: 67 | CN21: 65 | CO21: 71 | CP21: 66 | CQ21: 66 | CR21: 67 | CS21: 65 | CT21: 61 | CU21: 66 | CV21: 65
A22: 71 | B22: 68 | C22: 69 | D22: 67 | E22: 67 | F22: 67 | G22: 66 | H22: 69 | I22: 68 | J22: 73 | K22: 67 | L22: 68 | M22: 71 | N22: 67 | O22: 69 | P22: 62 | Q22: 69 | R22: 66 | S22: 72 | T22: 64 | U22: 71 | V22: 71 | W22: 71 | X22: 69 | Y22: 73 | Z22: 68 | AA22: 67 | AB22: 67 | AC22: 73 | AD22: 68 | AE22: 67 | AF22: 69 | AG22: 65 | AH22: 65 | AI22: 68 | AJ22: 61 | AK22: 71 | AL22: 70 | AM22: 70 | AN22: 67 | AO22: 67 | AP22: 66 | AQ22: 65 | AR22: 66 | AS22: 66 | AT22: 66 | AU22: 69 | AV22: 69 | AW22: 70 | AX22: 70 | AY22: 68 | AZ22: 71 | BA22: 69 | BB22: 69 | BC22: 68 | BD22: 64 | BE22: 66 | BF22: 73 | BG22: 64 | BH22: 71 | BI22: 71 | BJ22: 69 | BK22: 67 | BL22: 66 | BM22: 66 | BN22: 63 | BO22: 70 | BP22: 66 | BQ22: 68 | BR22: 67 | BS22: 66 | BT22: 69 | BU22: 68 | BV22: 66 | BW22: 70 | BX22: 71 | BY22: 67 | BZ22: 71 | CA22: 67 | CB22: 64 | CC22: 65 | CD22: 74 | CE22: 72 | CF22: 70 | CG22: 67 | CH22: 70 | CI22: 68 | CJ22: 68 | CK22: 71 | CL22: 62 | CM22: 73 | CN22: 69 | CO22: 68 | CP22: 69 | CQ22: 67 | CR22: 68 | CS22: 64 | CT22: 67 | CU22: 68 | CV22: 62
A23: 67 | B23: 69 | C23: 64 | D23: 70 | E23: 70 | F23: 73 | G23: 63 | H23: 68 | I23: 65 | J23: 66 | K23: 69 | L23: 67 | M23: 75 | N23: 68 | O23: 74 | P23: 66 | Q23: 69 | R23: 68 | S23: 74 | T23: 70 | U23: 74 | V23: 68 | W23: 64 | X23: 68 | Y23: 74 | Z23: 64 | AA23: 68 | AB23: 67 | AC23: 68 | AD23: 69 | AE23: 69 | AF23: 69 | AG23: 66 | AH23: 71 | AI23: 66 | AJ23: 70 | AK23: 68 | AL23: 68 | AM23: 74 | AN23: 67 | AO23: 68 | AP23: 70 | AQ23: 71 | AR23: 69 | AS23: 65 | AT23: 67 | AU23: 71 | AV23: 68 | AW23: 66 | AX23: 69 | AY23: 70 | AZ23: 64 | BA23: 66 | BB23: 71 | BC23: 72 | BD23: 70 | BE23: 61 | BF23: 67 | BG23: 66 | BH23: 74 | BI23: 64 | BJ23: 68 | BK23: 73 | BL23: 68 | BM23: 67 | BN23: 68 | BO23: 72 | BP23: 70 | BQ23: 72 | BR23: 66 | BS23: 66 | BT23: 68 | BU23: 67 | BV23: 66 | BW23: 72 | BX23: 61 | BY23: 68 | BZ23: 71 | CA23: 69 | CB23: 67 | CC23: 71 | CD23: 69 | CE23: 64 | CF23: 67 | CG23: 68 | CH23: 70 | CI23: 74 | CJ23: 61 | CK23: 69 | CL23: 69 | CM23: 71 | CN23: 68 | CO23: 73 | CP23: 68 | CQ23: 69 | CR23: 71 | CS23: 68 | CT23: 71 | CU23: 62 | CV23: 68
A24: 74 | B24: 69 | C24: 72 | D24: 71 | E24: 66 | F24: 68 | G24: 62 | H24: 68 | I24: 70 | J24: 65 | K24: 66 | L24: 65 | M24: 68 | N24: 70 | O24: 67 | P24: 69 | Q24: 68 | R24: 69 | S24: 67 | T24: 69 | U24: 65 | V24: 66 | W24: 63 | X24: 65 | Y24: 69 | Z24: 68 | AA24: 67 | AB24: 68 | AC24: 69 | AD24: 68 | AE24: 73 | AF24: 66 | AG24: 68 | AH24: 71 | AI24: 69 | AJ24: 72 | AK24: 68 | AL24: 62 | AM24: 68 | AN24: 68 | AO24: 70 | AP24: 69 | AQ24: 67 | AR24: 66 | AS24: 66 | AT24: 68 | AU24: 70 | AV24: 73 | AW24: 72 | AX24: 66 | AY24: 68 | AZ24: 73 | BA24: 71 | BB24: 66 | BC24: 72 | BD24: 69 | BE24: 68 | BF24: 69 | BG24: 70 | BH24: 66 | BI24: 66 | BJ24: 67 | BK24: 70 | BL24: 67 | BM24: 65 | BN24: 74 | BO24: 63 | BP24: 65 | BQ24: 72 | BR24: 73 | BS24: 66 | BT24: 64 | BU24: 68 | BV24: 71 | BW24: 66 | BX24: 68 | BY24: 67 | BZ24: 73 | CA24: 66 | CB24: 65 | CC24: 69 | CD24: 70 | CE24: 68 | CF24: 69 | CG24: 66 | CH24: 71 | CI24: 67 | CJ24: 72 | CK24: 67 | CL24: 67 | CM24: 65 | CN24: 71 | CO24: 68 | CP24: 67 | CQ24: 65 | CR24: 71 | CS24: 67 | CT24: 70 | CU24: 72 | CV24: 68
A25: 67 | B25: 68 | C25: 70 | D25: 69 | E25: 66 | F25: 68 | G25: 68 | H25: 67 | I25: 64 | J25: 68 | K25: 68 | L25: 66 | M25: 72 | N25: 62 | O25: 67 | P25: 72 | Q25: 69 | R25: 66 | S25: 69 | T25: 69 | U25: 68 | V25: 68 | W25: 66 | X25: 69 | Y25: 65 | Z25: 68 | AA25: 66 | AB25: 66 | AC25: 66 | AD25: 65 | AE25: 69 | AF25: 68 | AG25: 67 | AH25: 65 | AI25: 73 | AJ25: 73 | AK25: 68 | AL25: 66 | AM25: 68 | AN25: 69 | AO25: 61 | AP25: 67 | AQ25: 65 | AR25: 68 | AS25: 66 | AT25: 67 | AU25: 68 | AV25: 71 | AW25: 67 | AX25: 67 | AY25: 67 | AZ25: 68 | BA25: 66 | BB25: 68 | BC25: 66 | BD25: 74 | BE25: 67 | BF25: 66 | BG25: 66 | BH25: 66 | BI25: 70 | BJ25: 66 | BK25: 73 | BL25: 65 | BM25: 68 | BN25: 69 | BO25: 62 | BP25: 70 | BQ25: 68 | BR25: 69 | BS25: 66 | BT25: 71 | BU25: 73 | BV25: 67 | BW25: 66 | BX25: 71 | BY25: 68 | BZ25: 64 | CA25: 70 | CB25: 70 | CC25: 74 | CD25: 66 | CE25: 68 | CF25: 71 | CG25: 67 | CH25: 69 | CI25: 66 | CJ25: 67 | CK25: 68 | CL25: 66 | CM25: 66 | CN25: 69 | CO25: 66 | CP25: 72 | CQ25: 68 | CR25: 71 | CS25: 70 | CT25: 69 | CU25: 65 | CV25: 66
A26: 67 | B26: 73 | C26: 69 | D26: 65 | E26: 67 | F26: 70 | G26: 67 | H26: 66 | I26: 64 | J26: 66 | K26: 69 | L26: 66 | M26: 66 | N26: 68 | O26: 65 | P26: 63 | Q26: 72 | R26: 66 | S26: 66 | T26: 68 | U26: 70 | V26: 69 | W26: 70 | X26: 68 | Y26: 72 | Z26: 75 | AA26: 70 | AB26: 68 | AC26: 66 | AD26: 67 | AE26: 68 | AF26: 66 | AG26: 66 | AH26: 70 | AI26: 63 | AJ26: 73 | AK26: 71 | AL26: 72 | AM26: 72 | AN26: 66 | AO26: 72 | AP26: 66 | AQ26: 70 | AR26: 69 | AS26: 68 | AT26: 66 | AU26: 66 | AV26: 67 | AW26: 70 | AX26: 73 | AY26: 64 | AZ26: 72 | BA26: 70 | BB26: 67 | BC26: 65 | BD26: 69 | BE26: 61 | BF26: 68 | BG26: 67 | BH26: 70 | BI26: 62 | BJ26: 66 | BK26: 71 | BL26: 72 | BM26: 66 | BN26: 68 | BO26: 71 | BP26: 66 | BQ26: 68 | BR26: 73 | BS26: 72 | BT26: 69 | BU26: 66 | BV26: 68 | BW26: 68 | BX26: 66 | BY26: 71 | BZ26: 72 | CA26: 68 | CB26: 68 | CC26: 70 | CD26: 66 | CE26: 75 | CF26: 71 | CG26: 69 | CH26: 69 | CI26: 66 | CJ26: 69 | CK26: 72 | CL26: 64 | CM26: 68 | CN26: 68 | CO26: 70 | CP26: 66 | CQ26: 72 | CR26: 67 | CS26: 72 | CT26: 68 | CU26: 65 | CV26: 70
A27: 67 | B27: 71 | C27: 67 | D27: 68 | E27: 64 | F27: 70 | G27: 74 | H27: 66 | I27: 71 | J27: 74 | K27: 64 | L27: 65 | M27: 74 | N27: 66 | O27: 69 | P27: 65 | Q27: 68 | R27: 69 | S27: 70 | T27: 71 | U27: 70 | V27: 66 | W27: 73 | X27: 68 | Y27: 69 | Z27: 68 | AA27: 67 | AB27: 68 | AC27: 68 | AD27: 70 | AE27: 67 | AF27: 69 | AG27: 67 | AH27: 62 | AI27: 62 | AJ27: 67 | AK27: 66 | AL27: 67 | AM27: 66 | AN27: 67 | AO27: 67 | AP27: 72 | AQ27: 68 | AR27: 69 | AS27: 71 | AT27: 64 | AU27: 66 | AV27: 72 | AW27: 67 | AX27: 72 | AY27: 67 | AZ27: 69 | BA27: 64 | BB27: 68 | BC27: 64 | BD27: 69 | BE27: 68 | BF27: 71 | BG27: 68 | BH27: 70 | BI27: 67 | BJ27: 61 | BK27: 70 | BL27: 68 | BM27: 68 | BN27: 71 | BO27: 73 | BP27: 73 | BQ27: 68 | BR27: 65 | BS27: 70 | BT27: 67 | BU27: 67 | BV27: 71 | BW27: 72 | BX27: 72 | BY27: 67 | BZ27: 67 | CA27: 61 | CB27: 70 | CC27: 69 | CD27: 62 | CE27: 69 | CF27: 62 | CG27: 71 | CH27: 70 | CI27: 70 | CJ27: 68 | CK27: =sampx(pop, popsize,newSample) -> 68 | CL27: 73 | CM27: 67 | CN27: 65 | CO27: 72 | CP27: 64 | CQ27: 67 | CR27: 72 | CS27: 68 | CT27: 67 | CU27: 68 | CV27: 68
A28: 68 | B28: 68 | C28: 71 | D28: 70 | E28: 71 | F28: 70 | G28: 69 | H28: 66 | I28: 68 | J28: 72 | K28: 66 | L28: 69 | M28: 71 | N28: 71 | O28: 73 | P28: 70 | Q28: 67 | R28: 68 | S28: 67 | T28: 65 | U28: 62 | V28: 71 | W28: 69 | X28: 71 | Y28: 69 | Z28: 67 | AA28: 73 | AB28: 69 | AC28: 65 | AD28: 65 | AE28: 68 | AF28: 66 | AG28: 68 | AH28: 71 | AI28: 74 | AJ28: 68 | AK28: 69 | AL28: 67 | AM28: 66 | AN28: 66 | AO28: 68 | AP28: 72 | AQ28: 67 | AR28: 69 | AS28: 69 | AT28: 66 | AU28: 73 | AV28: 69 | AW28: 70 | AX28: 68 | AY28: 70 | AZ28: 68 | BA28: 68 | BB28: 73 | BC28: 68 | BD28: 68 | BE28: 68 | BF28: 69 | BG28: 68 | BH28: 68 | BI28: 70 | BJ28: 62 | BK28: 73 | BL28: 63 | BM28: 70 | BN28: 68 | BO28: 72 | BP28: 62 | BQ28: 73 | BR28: 64 | BS28: 73 | BT28: 66 | BU28: 68 | BV28: 66 | BW28: 66 | BX28: 70 | BY28: 66 | BZ28: 73 | CA28: 71 | CB28: 68 | CC28: 71 | CD28: 74 | CE28: 73 | CF28: 68 | CG28: 65 | CH28: 66 | CI28: 66 | CJ28: 68 | CK28: 68 | CL28: 75 | CM28: 68 | CN28: 70 | CO28: 74 | CP28: 75 | CQ28: 64 | CR28: 66 | CS28: 67 | CT28: 69 | CU28: 71 | CV28: 66
A29: 69 | B29: 71 | C29: 68 | D29: 70 | E29: 68 | F29: 68 | G29: 68 | H29: 68 | I29: 67 | J29: 63 | K29: 66 | L29: 67 | M29: 67 | N29: 70 | O29: 68 | P29: 70 | Q29: 67 | R29: 66 | S29: 67 | T29: 66 | U29: 66 | V29: 62 | W29: 66 | X29: 67 | Y29: 71 | Z29: 70 | AA29: 68 | AB29: 69 | AC29: 68 | AD29: 68 | AE29: 62 | AF29: 69 | AG29: 67 | AH29: 71 | AI29: 69 | AJ29: 73 | AK29: 70 | AL29: 62 | AM29: 71 | AN29: 66 | AO29: 67 | AP29: 67 | AQ29: 70 | AR29: 70 | AS29: 67 | AT29: 69 | AU29: 70 | AV29: 70 | AW29: 68 | AX29: 72 | AY29: 71 | AZ29: 70 | BA29: 69 | BB29: 72 | BC29: 66 | BD29: 67 | BE29: 72 | BF29: 68 | BG29: 69 | BH29: 68 | BI29: 67 | BJ29: 62 | BK29: 70 | BL29: 66 | BM29: 65 | BN29: 69 | BO29: 69 | BP29: 68 | BQ29: 71 | BR29: 68 | BS29: 69 | BT29: 67 | BU29: 69 | BV29: 63 | BW29: 68 | BX29: 74 | BY29: 66 | BZ29: 69 | CA29: 65 | CB29: 70 | CC29: 61 | CD29: 73 | CE29: 69 | CF29: 68 | CG29: 70 | CH29: 68 | CI29: 66 | CJ29: 71 | CK29: 65 | CL29: 68 | CM29: 67 | CN29: 67 | CO29: 67 | CP29: 69 | CQ29: 69 | CR29: 69 | CS29: 67 | CT29: 66 | CU29: 67 | CV29: 71
A30: 68 | B30: 69 | C30: 68 | D30: 68 | E30: 69 | F30: 71 | G30: 72 | H30: 67 | I30: 67 | J30: 68 | K30: 68 | L30: 62 | M30: 71 | N30: 67 | O30: 67 | P30: 68 | Q30: 67 | R30: 63 | S30: 70 | T30: 66 | U30: 67 | V30: 61 | W30: 67 | X30: 66 | Y30: 66 | Z30: 68 | AA30: 68 | AB30: 68 | AC30: 71 | AD30: 66 | AE30: 70 | AF30: 68 | AG30: 67 | AH30: 66 | AI30: 66 | AJ30: 70 | AK30: 69 | AL30: 70 | AM30: 68 | AN30: 69 | AO30: 66 | AP30: 72 | AQ30: 70 | AR30: 69 | AS30: 68 | AT30: 74 | AU30: 69 | AV30: 68 | AW30: 69 | AX30: 70 | AY30: 62 | AZ30: 73 | BA30: 66 | BB30: 67 | BC30: 75 | BD30: 68 | BE30: 71 | BF30: 69 | BG30: 71 | BH30: 67 | BI30: 71 | BJ30: 68 | BK30: 68 | BL30: 67 | BM30: 66 | BN30: 65 | BO30: 72 | BP30: 73 | BQ30: 61 | BR30: 71 | BS30: 68 | BT30: 65 | BU30: 71 | BV30: 73 | BW30: 71 | BX30: 70 | BY30: 71 | BZ30: 65 | CA30: 69 | CB30: 66 | CC30: 66 | CD30: 66 | CE30: 67 | CF30: 69 | CG30: 69 | CH30: 70 | CI30: 68 | CJ30: 68 | CK30: 71 | CL30: 66 | CM30: 67 | CN30: 73 | CO30: 72 | CP30: 68 | CQ30: 68 | CR30: 73 | CS30: 62 | CT30: 70 | CU30: 72 | CV30: 74
A31: =sampx(pop, popsize,newSample) -> 75 | B31: 63 | C31: 66 | D31: 72 | E31: 72 | F31: 66 | G31: 65 | H31: 69 | I31: 72 | J31: 70 | K31: =sampx(pop, popsize,newSample) -> 72 | L31: 67 | M31: 72 | N31: 66 | O31: 65 | P31: 69 | Q31: 70 | R31: 65 | S31: 69 | T31: 66 | U31: =sampx(pop, popsize,newSample) -> 69 | V31: 69 | W31: 66 | X31: 70 | Y31: 68 | Z31: 66 | AA31: 67 | AB31: 66 | AC31: 69 | AD31: 67 | AE31: =sampx(pop, popsize,newSample) -> 69 | AF31: 74 | AG31: 63 | AH31: 66 | AI31: 69 | AJ31: 69 | AK31: 69 | AL31: 68 | AM31: 69 | AN31: 70 | AO31: =sampx(pop, popsize,newSample) -> 63 | AP31: 73 | AQ31: 69 | AR31: 74 | AS31: 65 | AT31: 69 | AU31: 67 | AV31: 68 | AW31: 67 | AX31: 67 | AY31: =sampx(pop, popsize,newSample) -> 68 | AZ31: 67 | BA31: 73 | BB31: 67 | BC31: 70 | BD31: 71 | BE31: 71 | BF31: 66 | BG31: 68 | BH31: 68 | BI31: =sampx(pop, popsize,newSample) -> 64 | BJ31: 63 | BK31: 68 | BL31: 66 | BM31: 64 | BN31: 69 | BO31: 66 | BP31: 72 | BQ31: 67 | BR31: 66 | BS31: =sampx(pop, popsize,newSample) -> 66 | BT31: 68 | BU31: 67 | BV31: 73 | BW31: 62 | BX31: 63 | BY31: 70 | BZ31: 73 | CA31: 68 | CB31: 67 | CC31: 67 | CD31: 66 | CE31: 67 | CF31: 71 | CG31: 70 | CH31: 65 | CI31: 64 | CJ31: 68 | CK31: 68 | CL31: 64 | CM31: 67 | CN31: 69 | CO31: 69 | CP31: 62 | CQ31: 66 | CR31: 73 | CS31: 69 | CT31: 62 | CU31: 68 | CV31: 67
A32: 73 | B32: 68 | C32: 68 | D32: 65 | E32: 66 | F32: 71 | G32: 67 | H32: 67 | I32: 66 | J32: 68 | K32: 72 | L32: 67 | M32: 73 | N32: 71 | O32: 68 | P32: 66 | Q32: 68 | R32: 68 | S32: 66 | T32: 68 | U32: 62 | V32: 66 | W32: 72 | X32: 68 | Y32: 65 | Z32: 67 | AA32: 66 | AB32: 70 | AC32: 68 | AD32: 67 | AE32: 68 | AF32: 65 | AG32: 71 | AH32: 69 | AI32: 64 | AJ32: 64 | AK32: 68 | AL32: 70 | AM32: 68 | AN32: 67 | AO32: 69 | AP32: 73 | AQ32: 68 | AR32: 67 | AS32: 69 | AT32: 70 | AU32: 67 | AV32: 68 | AW32: 70 | AX32: 67 | AY32: 66 | AZ32: 66 | BA32: 70 | BB32: 75 | BC32: 69 | BD32: 69 | BE32: 66 | BF32: 66 | BG32: 66 | BH32: 65 | BI32: 64 | BJ32: 70 | BK32: 70 | BL32: 64 | BM32: 68 | BN32: 68 | BO32: 69 | BP32: 70 | BQ32: 67 | BR32: 71 | BS32: 68 | BT32: 70 | BU32: 71 | BV32: 68 | BW32: 68 | BX32: 71 | BY32: 67 | BZ32: 63 | CA32: 69 | CB32: 69 | CC32: 65 | CD32: 67 | CE32: 68 | CF32: 64 | CG32: 68 | CH32: 74 | CI32: 71 | CJ32: 66 | CK32: 64 | CL32: 73 | CM32: 62 | CN32: 72 | CO32: 71 | CP32: 68 | CQ32: 69 | CR32: 70 | CS32: 73 | CT32: 68 | CU32: 70 | CV32: 67
A33: 66 | B33: 70 | C33: 68 | D33: 68 | E33: 67 | F33: 66 | G33: 66 | H33: 71 | I33: 70 | J33: 69 | K33: 66 | L33: 67 | M33: 68 | N33: 73 | O33: 69 | P33: 69 | Q33: 67 | R33: 69 | S33: 69 | T33: 67 | U33: 67 | V33: 66 | W33: 66 | X33: 67 | Y33: 75 | Z33: 67 | AA33: 73 | AB33: 67 | AC33: 67 | AD33: 64 | AE33: 69 | AF33: 69 | AG33: 72 | AH33: 68 | AI33: 68 | AJ33: 71 | AK33: 67 | AL33: 70 | AM33: 69 | AN33: 66 | AO33: 69 | AP33: 67 | AQ33: 64 | AR33: 69 | AS33: 66 | AT33: 66 | AU33: 73 | AV33: 68 | AW33: 66 | AX33: 65 | AY33: 67 | AZ33: 66 | BA33: 61 | BB33: 69 | BC33: 63 | BD33: 68 | BE33: 66 | BF33: 67 | BG33: 67 | BH33: 66 | BI33: 74 | BJ33: 71 | BK33: 67 | BL33: 64 | BM33: 71 | BN33: 70 | BO33: 68 | BP33: 67 | BQ33: 65 | BR33: 68 | BS33: 70 | BT33: 67 | BU33: 74 | BV33: 69 | BW33: 69 | BX33: 67 | BY33: 68 | BZ33: 66 | CA33: 67 | CB33: 65 | CC33: 69 | CD33: 65 | CE33: 69 | CF33: 66 | CG33: 65 | CH33: 66 | CI33: 72 | CJ33: 67 | CK33: 69 | CL33: 73 | CM33: 69 | CN33: 69 | CO33: 72 | CP33: 69 | CQ33: 70 | CR33: 68 | CS33: 73 | CT33: 66 | CU33: 67 | CV33: 63
A34: 67 | B34: 68 | C34: 70 | D34: 69 | E34: 68 | F34: 69 | G34: 69 | H34: 69 | I34: 73 | J34: 74 | K34: 67 | L34: 67 | M34: 67 | N34: 71 | O34: 65 | P34: 68 | Q34: 68 | R34: 66 | S34: 72 | T34: 66 | U34: 71 | V34: 65 | W34: 69 | X34: 66 | Y34: 65 | Z34: 67 | AA34: 66 | AB34: 61 | AC34: 74 | AD34: 69 | AE34: 66 | AF34: 65 | AG34: 68 | AH34: 73 | AI34: 75 | AJ34: 74 | AK34: 71 | AL34: 63 | AM34: 68 | AN34: 66 | AO34: 68 | AP34: 69 | AQ34: 71 | AR34: 67 | AS34: 67 | AT34: 70 | AU34: 67 | AV34: 70 | AW34: 69 | AX34: 62 | AY34: 68 | AZ34: 65 | BA34: 67 | BB34: 70 | BC34: 70 | BD34: 68 | BE34: 67 | BF34: 66 | BG34: 71 | BH34: 66 | BI34: 73 | BJ34: 69 | BK34: 71 | BL34: 69 | BM34: 69 | BN34: 66 | BO34: 66 | BP34: 70 | BQ34: 70 | BR34: 68 | BS34: 74 | BT34: 68 | BU34: 68 | BV34: 70 | BW34: 68 | BX34: 66 | BY34: 66 | BZ34: 68 | CA34: 66 | CB34: 69 | CC34: 67 | CD34: 67 | CE34: 65 | CF34: 67 | CG34: 70 | CH34: 66 | CI34: 69 | CJ34: 69 | CK34: 66 | CL34: 68 | CM34: 66 | CN34: 69 | CO34: 69 | CP34: 68 | CQ34: 73 | CR34: 68 | CS34: 66 | CT34: 69 | CU34: 66 | CV34: 64
A35: 67 | B35: 67 | C35: 67 | D35: 64 | E35: 73 | F35: 69 | G35: 68 | H35: 67 | I35: 68 | J35: 66 | K35: 67 | L35: 66 | M35: 69 | N35: 69 | O35: 67 | P35: 66 | Q35: 66 | R35: 65 | S35: 71 | T35: 66 | U35: 70 | V35: 70 | W35: 62 | X35: 74 | Y35: 67 | Z35: 71 | AA35: 73 | AB35: 68 | AC35: 68 | AD35: 74 | AE35: 66 | AF35: 73 | AG35: 68 | AH35: 62 | AI35: 74 | AJ35: 64 | AK35: 69 | AL35: 69 | AM35: 66 | AN35: 69 | AO35: 69 | AP35: 67 | AQ35: 62 | AR35: 68 | AS35: 74 | AT35: 62 | AU35: 69 | AV35: 70 | AW35: 71 | AX35: 72 | AY35: 68 | AZ35: 74 | BA35: 68 | BB35: 67 | BC35: 66 | BD35: 72 | BE35: 69 | BF35: 68 | BG35: 71 | BH35: 66 | BI35: 63 | BJ35: 68 | BK35: 69 | BL35: 63 | BM35: 68 | BN35: 69 | BO35: 71 | BP35: 70 | BQ35: 66 | BR35: 67 | BS35: 65 | BT35: 75 | BU35: 64 | BV35: 69 | BW35: 71 | BX35: 68 | BY35: 73 | BZ35: 70 | CA35: 73 | CB35: 71 | CC35: 66 | CD35: 70 | CE35: 65 | CF35: 65 | CG35: 67 | CH35: 68 | CI35: 68 | CJ35: 75 | CK35: 69 | CL35: 68 | CM35: 70 | CN35: 69 | CO35: 72 | CP35: 75 | CQ35: 68 | CR35: 67 | CS35: 68 | CT35: 68 | CU35: 65 | CV35: 72
A36: 68 | B36: 72 | C36: 69 | D36: 66 | E36: 71 | F36: 69 | G36: 70 | H36: 70 | I36: 65 | J36: 66 | K36: 68 | L36: 68 | M36: 69 | N36: 69 | O36: 66 | P36: 68 | Q36: 75 | R36: 64 | S36: 68 | T36: 68 | U36: 68 | V36: 70 | W36: 75 | X36: 67 | Y36: 70 | Z36: 66 | AA36: 68 | AB36: 69 | AC36: 68 | AD36: 66 | AE36: 67 | AF36: 67 | AG36: 69 | AH36: 72 | AI36: 70 | AJ36: 69 | AK36: 66 | AL36: 68 | AM36: 68 | AN36: 70 | AO36: 71 | AP36: 67 | AQ36: 63 | AR36: 68 | AS36: 65 | AT36: 68 | AU36: 66 | AV36: 67 | AW36: 63 | AX36: 70 | AY36: 68 | AZ36: 70 | BA36: 69 | BB36: 71 | BC36: 67 | BD36: 66 | BE36: 65 | BF36: 66 | BG36: 71 | BH36: 68 | BI36: 65 | BJ36: 70 | BK36: 66 | BL36: 64 | BM36: 67 | BN36: 66 | BO36: 62 | BP36: 75 | BQ36: 70 | BR36: 71 | BS36: 68 | BT36: 62 | BU36: 70 | BV36: 73 | BW36: 66 | BX36: 64 | BY36: 71 | BZ36: 66 | CA36: 70 | CB36: 67 | CC36: 61 | CD36: 66 | CE36: 65 | CF36: 69 | CG36: 67 | CH36: 67 | CI36: 73 | CJ36: 72 | CK36: 70 | CL36: 75 | CM36: 72 | CN36: 66 | CO36: 66 | CP36: 68 | CQ36: 69 | CR36: 65 | CS36: 71 | CT36: 67 | CU36: 67 | CV36: 68
A37: 66 | B37: 69 | C37: 63 | D37: 74 | E37: 70 | F37: 73 | G37: 69 | H37: 68 | I37: 68 | J37: 68 | K37: 69 | L37: 68 | M37: 65 | N37: 71 | O37: 69 | P37: 67 | Q37: 67 | R37: 68 | S37: 66 | T37: 74 | U37: 67 | V37: 70 | W37: 65 | X37: 65 | Y37: 64 | Z37: 70 | AA37: 67 | AB37: 69 | AC37: 68 | AD37: 71 | AE37: 68 | AF37: 67 | AG37: 68 | AH37: 64 | AI37: 66 | AJ37: 64 | AK37: 68 | AL37: 68 | AM37: 74 | AN37: 67 | AO37: 73 | AP37: 69 | AQ37: 62 | AR37: 67 | AS37: 73 | AT37: 68 | AU37: 67 | AV37: 69 | AW37: 65 | AX37: 73 | AY37: 71 | AZ37: 64 | BA37: 67 | BB37: 69 | BC37: 66 | BD37: 69 | BE37: 66 | BF37: 71 | BG37: 74 | BH37: 71 | BI37: 63 | BJ37: 72 | BK37: 65 | BL37: 70 | BM37: 67 | BN37: 68 | BO37: 67 | BP37: 72 | BQ37: 67 | BR37: 67 | BS37: 72 | BT37: 65 | BU37: 68 | BV37: 61 | BW37: 69 | BX37: 73 | BY37: 66 | BZ37: 66 | CA37: 69 | CB37: 67 | CC37: 67 | CD37: 67 | CE37: 67 | CF37: 66 | CG37: 68 | CH37: 66 | CI37: 73 | CJ37: 66 | CK37: 71 | CL37: 64 | CM37: 62 | CN37: 63 | CO37: 68 | CP37: 67 | CQ37: 65 | CR37: 68 | CS37: 69 | CT37: 67 | CU37: 74 | CV37: 70
A38: 68 | B38: 66 | C38: 69 | D38: 70 | E38: 65 | F38: 65 | G38: 73 | H38: 66 | I38: 68 | J38: 71 | K38: 69 | L38: 67 | M38: 69 | N38: 71 | O38: 68 | P38: 69 | Q38: 67 | R38: 71 | S38: 66 | T38: 70 | U38: 64 | V38: 72 | W38: 61 | X38: 68 | Y38: 67 | Z38: 74 | AA38: 67 | AB38: 65 | AC38: 62 | AD38: 65 | AE38: 66 | AF38: 70 | AG38: 68 | AH38: 69 | AI38: 74 | AJ38: 69 | AK38: 71 | AL38: 73 | AM38: 66 | AN38: 68 | AO38: 68 | AP38: 65 | AQ38: 68 | AR38: 68 | AS38: 69 | AT38: 69 | AU38: 67 | AV38: 68 | AW38: 68 | AX38: 69 | AY38: 73 | AZ38: 64 | BA38: 66 | BB38: 67 | BC38: 70 | BD38: 66 | BE38: 66 | BF38: 68 | BG38: 70 | BH38: 70 | BI38: 65 | BJ38: 67 | BK38: 68 | BL38: 67 | BM38: 73 | BN38: 68 | BO38: 72 | BP38: 67 | BQ38: 69 | BR38: 66 | BS38: 68 | BT38: 65 | BU38: 70 | BV38: 69 | BW38: 71 | BX38: 70 | BY38: 66 | BZ38: 68 | CA38: 73 | CB38: 69 | CC38: 69 | CD38: 74 | CE38: 69 | CF38: 67 | CG38: 66 | CH38: 69 | CI38: 69 | CJ38: 69 | CK38: 65 | CL38: 66 | CM38: 67 | CN38: 65 | CO38: 69 | CP38: 68 | CQ38: 66 | CR38: 67 | CS38: 70 | CT38: 67 | CU38: 64 | CV38: 73
A39: 67 | B39: 69 | C39: 71 | D39: 67 | E39: 71 | F39: 68 | G39: 66 | H39: 66 | I39: 66 | J39: 64 | K39: 62 | L39: 69 | M39: 71 | N39: 68 | O39: 67 | P39: 72 | Q39: 67 | R39: 65 | S39: 69 | T39: 69 | U39: 74 | V39: 68 | W39: 71 | X39: 69 | Y39: 72 | Z39: 66 | AA39: 67 | AB39: 69 | AC39: 67 | AD39: 73 | AE39: 65 | AF39: 62 | AG39: 65 | AH39: 66 | AI39: 66 | AJ39: 68 | AK39: 69 | AL39: 73 | AM39: 72 | AN39: 69 | AO39: 69 | AP39: 67 | AQ39: 68 | AR39: 68 | AS39: 69 | AT39: 65 | AU39: 68 | AV39: 69 | AW39: 66 | AX39: 70 | AY39: 68 | AZ39: 66 | BA39: 70 | BB39: 67 | BC39: 68 | BD39: 70 | BE39: 69 | BF39: 68 | BG39: 67 | BH39: 70 | BI39: 68 | BJ39: 72 | BK39: 67 | BL39: 68 | BM39: 69 | BN39: 67 | BO39: 71 | BP39: 67 | BQ39: 67 | BR39: 65 | BS39: 74 | BT39: 69 | BU39: 67 | BV39: 65 | BW39: 67 | BX39: 68 | BY39: 66 | BZ39: 66 | CA39: 71 | CB39: 69 | CC39: 66 | CD39: 69 | CE39: 69 | CF39: 66 | CG39: 71 | CH39: 69 | CI39: 65 | CJ39: 74 | CK39: 69 | CL39: 65 | CM39: 67 | CN39: 66 | CO39: 68 | CP39: 67 | CQ39: 69 | CR39: 69 | CS39: 74 | CT39: 69 | CU39: 72 | CV39: 71
A40: 67 | B40: 67 | C40: 69 | D40: 67 | E40: 69 | F40: 65 | G40: 69 | H40: 67 | I40: 70 | J40: 71 | K40: 67 | L40: 66 | M40: 66 | N40: 68 | O40: 61 | P40: 70 | Q40: 71 | R40: 75 | S40: 69 | T40: 68 | U40: 69 | V40: 69 | W40: 68 | X40: 74 | Y40: 70 | Z40: 69 | AA40: 70 | AB40: 66 | AC40: 69 | AD40: 66 | AE40: 67 | AF40: 70 | AG40: 70 | AH40: 70 | AI40: 67 | AJ40: 71 | AK40: 67 | AL40: 66 | AM40: 69 | AN40: 72 | AO40: 67 | AP40: 68 | AQ40: 65 | AR40: 68 | AS40: 70 | AT40: 68 | AU40: 72 | AV40: 70 | AW40: 72 | AX40: 66 | AY40: 66 | AZ40: 71 | BA40: 63 | BB40: 66 | BC40: 67 | BD40: 70 | BE40: 69 | BF40: 69 | BG40: 67 | BH40: 67 | BI40: 73 | BJ40: 68 | BK40: 74 | BL40: 69 | BM40: 66 | BN40: 68 | BO40: 67 | BP40: 69 | BQ40: 75 | BR40: 72 | BS40: 67 | BT40: 72 | BU40: 68 | BV40: 67 | BW40: 70 | BX40: 64 | BY40: 68 | BZ40: 69 | CA40: 74 | CB40: 72 | CC40: 67 | CD40: 73 | CE40: 70 | CF40: 70 | CG40: 73 | CH40: 68 | CI40: 65 | CJ40: 67 | CK40: 74 | CL40: =sampx(pop, popsize,newSample) -> 66 | CM40: 66 | CN40: 69 | CO40: 71 | CP40: 69 | CQ40: 70 | CR40: 69 | CS40: 71 | CT40: 74 | CU40: 66 | CV40: 66
A41: =sampx(pop, popsize,newSample) -> 64 | B41: 63 | C41: 68 | D41: 73 | E41: 64 | F41: 67 | G41: 70 | H41: 68 | I41: 67 | J41: 71 | K41: =sampx(pop, popsize,newSample) -> 70 | L41: 66 | M41: 65 | N41: 68 | O41: 68 | P41: 69 | Q41: 67 | R41: 67 | S41: 73 | T41: 73 | U41: =sampx(pop, popsize,newSample) -> 66 | V41: 70 | W41: 67 | X41: 65 | Y41: 69 | Z41: 70 | AA41: 69 | AB41: 66 | AC41: 66 | AD41: 75 | AE41: =sampx(pop, popsize,newSample) -> 69 | AF41: 68 | AG41: 65 | AH41: 68 | AI41: 69 | AJ41: 68 | AK41: 66 | AL41: 67 | AM41: 68 | AN41: 64 | AO41: =sampx(pop, popsize,newSample) -> 72 | AP41: 66 | AQ41: 66 | AR41: 70 | AS41: 72 | AT41: 68 | AU41: 62 | AV41: 66 | AW41: 66 | AX41: 69 | AY41: =sampx(pop, popsize,newSample) -> 68 | AZ41: 67 | BA41: 66 | BB41: 69 | BC41: 71 | BD41: 63 | BE41: 69 | BF41: 66 | BG41: 69 | BH41: 63 | BI41: =sampx(pop, popsize,newSample) -> 66 | BJ41: 70 | BK41: 74 | BL41: 70 | BM41: 67 | BN41: 68 | BO41: 65 | BP41: 66 | BQ41: 67 | BR41: 68 | BS41: =sampx(pop, popsize,newSample) -> 66 | BT41: 73 | BU41: 65 | BV41: 71 | BW41: 67 | BX41: 73 | BY41: 67 | BZ41: 73 | CA41: 65 | CB41: 70 | CC41: 66 | CD41: 68 | CE41: 62 | CF41: 66 | CG41: 71 | CH41: 69 | CI41: =sampx(pop, popsize,newSample) -> 69 | CJ41: 66 | CK41: 70 | CL41: 68 | CM41: 69 | CN41: 67 | CO41: 69 | CP41: 66 | CQ41: 71 | CR41: 69 | CS41: 69 | CT41: 65 | CU41: 71 | CV41: 67
A42: 75 | B42: 67 | C42: 70 | D42: 69 | E42: 73 | F42: 67 | G42: 65 | H42: 62 | I42: 67 | J42: 63 | K42: 71 | L42: 68 | M42: 72 | N42: 70 | O42: 68 | P42: 68 | Q42: 72 | R42: 67 | S42: 69 | T42: 68 | U42: 68 | V42: 67 | W42: 67 | X42: 67 | Y42: 67 | Z42: 69 | AA42: 68 | AB42: 65 | AC42: 74 | AD42: 69 | AE42: 70 | AF42: 65 | AG42: 68 | AH42: 67 | AI42: 73 | AJ42: 69 | AK42: 73 | AL42: 70 | AM42: 69 | AN42: 67 | AO42: 70 | AP42: 69 | AQ42: 67 | AR42: 75 | AS42: 68 | AT42: 71 | AU42: 62 | AV42: 69 | AW42: 66 | AX42: 64 | AY42: 67 | AZ42: 61 | BA42: 62 | BB42: 73 | BC42: 71 | BD42: 68 | BE42: 73 | BF42: 67 | BG42: 68 | BH42: 65 | BI42: 71 | BJ42: 68 | BK42: 67 | BL42: 68 | BM42: 67 | BN42: 68 | BO42: 70 | BP42: 67 | BQ42: 68 | BR42: 69 | BS42: 64 | BT42: 69 | BU42: 69 | BV42: 68 | BW42: 68 | BX42: 66 | BY42: 65 | BZ42: 62 | CA42: 71 | CB42: 63 | CC42: 66 | CD42: 69 | CE42: 69 | CF42: 64 | CG42: 69 | CH42: 68 | CI42: 68 | CJ42: 69 | CK42: 65 | CL42: 73 | CM42: 72 | CN42: 64 | CO42: 67 | CP42: 68 | CQ42: 65 | CR42: 68 | CS42: 68 | CT42: 62 | CU42: 62 | CV42: 71
A43: 69 | B43: 72 | C43: 69 | D43: 70 | E43: 73 | F43: 67 | G43: 71 | H43: 62 | I43: 68 | J43: 66 | K43: 68 | L43: 66 | M43: 67 | N43: 71 | O43: 65 | P43: 69 | Q43: 69 | R43: 73 | S43: 71 | T43: 68 | U43: 65 | V43: 67 | W43: 66 | X43: 68 | Y43: 62 | Z43: 67 | AA43: 69 | AB43: 67 | AC43: 72 | AD43: 69 | AE43: 71 | AF43: 68 | AG43: 73 | AH43: 69 | AI43: 68 | AJ43: 68 | AK43: 66 | AL43: 75 | AM43: 71 | AN43: 69 | AO43: 68 | AP43: 67 | AQ43: 67 | AR43: 66 | AS43: 63 | AT43: 70 | AU43: 65 | AV43: 66 | AW43: 69 | AX43: 63 | AY43: 70 | AZ43: 71 | BA43: 69 | BB43: 73 | BC43: 68 | BD43: 67 | BE43: 68 | BF43: 70 | BG43: 67 | BH43: 69 | BI43: 66 | BJ43: 68 | BK43: 66 | BL43: 68 | BM43: 65 | BN43: 68 | BO43: 68 | BP43: 70 | BQ43: 68 | BR43: 67 | BS43: 74 | BT43: 67 | BU43: 68 | BV43: 68 | BW43: 68 | BX43: 69 | BY43: 68 | BZ43: 70 | CA43: 68 | CB43: 70 | CC43: 64 | CD43: 65 | CE43: 69 | CF43: 67 | CG43: 63 | CH43: 69 | CI43: 68 | CJ43: 72 | CK43: 66 | CL43: 69 | CM43: 67 | CN43: 67 | CO43: 69 | CP43: 65 | CQ43: 69 | CR43: 68 | CS43: 65 | CT43: 70 | CU43: 68 | CV43: 69
A44: 75 | B44: 72 | C44: 66 | D44: 68 | E44: 62 | F44: 67 | G44: 67 | H44: 68 | I44: 61 | J44: 69 | K44: 66 | L44: 69 | M44: 61 | N44: 64 | O44: 74 | P44: 69 | Q44: 66 | R44: 68 | S44: 66 | T44: 71 | U44: 61 | V44: 62 | W44: 68 | X44: 66 | Y44: 73 | Z44: 71 | AA44: 67 | AB44: 71 | AC44: 69 | AD44: 67 | AE44: 66 | AF44: 67 | AG44: 70 | AH44: 67 | AI44: 62 | AJ44: 70 | AK44: 70 | AL44: 74 | AM44: 71 | AN44: 68 | AO44: 69 | AP44: 73 | AQ44: 66 | AR44: 66 | AS44: 64 | AT44: 69 | AU44: 63 | AV44: 65 | AW44: 68 | AX44: 68 | AY44: 67 | AZ44: 73 | BA44: 67 | BB44: 67 | BC44: 68 | BD44: 62 | BE44: 69 | BF44: 72 | BG44: 69 | BH44: 62 | BI44: 71 | BJ44: 67 | BK44: 67 | BL44: 70 | BM44: 64 | BN44: 73 | BO44: 68 | BP44: 70 | BQ44: 68 | BR44: 71 | BS44: 67 | BT44: 69 | BU44: 69 | BV44: 62 | BW44: 72 | BX44: 68 | BY44: 64 | BZ44: 68 | CA44: 67 | CB44: 67 | CC44: 70 | CD44: 70 | CE44: 70 | CF44: 67 | CG44: 68 | CH44: 66 | CI44: 68 | CJ44: 69 | CK44: 62 | CL44: 67 | CM44: 67 | CN44: 67 | CO44: 67 | CP44: 70 | CQ44: 68 | CR44: 66 | CS44: 74 | CT44: 66 | CU44: 71 | CV44: 66
A45: 73 | B45: 66 | C45: 68 | D45: 61 | E45: 63 | F45: 66 | G45: 68 | H45: 73 | I45: 68 | J45: 62 | K45: 67 | L45: 68 | M45: 68 | N45: 66 | O45: 70 | P45: 63 | Q45: 66 | R45: 68 | S45: 68 | T45: 67 | U45: 73 | V45: 61 | W45: 67 | X45: 65 | Y45: 66 | Z45: 66 | AA45: 71 | AB45: 66 | AC45: 68 | AD45: 66 | AE45: 61 | AF45: 65 | AG45: 65 | AH45: 65 | AI45: 70 | AJ45: 69 | AK45: 64 | AL45: 68 | AM45: 69 | AN45: 68 | AO45: 67 | AP45: 66 | AQ45: 69 | AR45: 68 | AS45: 68 | AT45: 67 | AU45: 66 | AV45: 68 | AW45: 68 | AX45: 73 | AY45: 66 | AZ45: 63 | BA45: 69 | BB45: 70 | BC45: 61 | BD45: 74 | BE45: 62 | BF45: 67 | BG45: 73 | BH45: 73 | BI45: 66 | BJ45: 69 | BK45: 68 | BL45: 71 | BM45: 75 | BN45: 66 | BO45: 69 | BP45: 70 | BQ45: 74 | BR45: 74 | BS45: 70 | BT45: 65 | BU45: 66 | BV45: 69 | BW45: 71 | BX45: 69 | BY45: 72 | BZ45: 69 | CA45: 67 | CB45: 65 | CC45: 66 | CD45: 70 | CE45: 71 | CF45: 66 | CG45: 68 | CH45: 67 | CI45: 72 | CJ45: 68 | CK45: 64 | CL45: 68 | CM45: 61 | CN45: 71 | CO45: 69 | CP45: 65 | CQ45: 72 | CR45: 68 | CS45: 68 | CT45: 69 | CU45: 73 | CV45: 61
A46: 62 | B46: 67 | C46: 65 | D46: 67 | E46: 65 | F46: 68 | G46: 69 | H46: 69 | I46: 69 | J46: 71 | K46: 67 | L46: 70 | M46: 67 | N46: 66 | O46: 64 | P46: 68 | Q46: 65 | R46: 72 | S46: 69 | T46: 68 | U46: 65 | V46: 66 | W46: 65 | X46: 67 | Y46: 67 | Z46: 65 | AA46: 67 | AB46: 69 | AC46: 70 | AD46: 64 | AE46: 69 | AF46: 65 | AG46: 69 | AH46: 67 | AI46: 67 | AJ46: 67 | AK46: 72 | AL46: 73 | AM46: 65 | AN46: 71 | AO46: 69 | AP46: 69 | AQ46: 69 | AR46: 66 | AS46: 72 | AT46: 71 | AU46: 66 | AV46: 68 | AW46: 66 | AX46: 68 | AY46: 66 | AZ46: 64 | BA46: 70 | BB46: 66 | BC46: 69 | BD46: 70 | BE46: 67 | BF46: 69 | BG46: 67 | BH46: 69 | BI46: 71 | BJ46: 66 | BK46: 67 | BL46: 70 | BM46: 67 | BN46: 74 | BO46: 68 | BP46: 68 | BQ46: 68 | BR46: 70 | BS46: 70 | BT46: 66 | BU46: 66 | BV46: 67 | BW46: 71 | BX46: 75 | BY46: 72 | BZ46: 69 | CA46: 67 | CB46: 65 | CC46: 70 | CD46: 67 | CE46: 68 | CF46: 65 | CG46: 67 | CH46: 69 | CI46: 75 | CJ46: 68 | CK46: 68 | CL46: 63 | CM46: 64 | CN46: 68 | CO46: 72 | CP46: 73 | CQ46: 66 | CR46: 66 | CS46: 73 | CT46: 67 | CU46: 67 | CV46: 69
A47: 67 | B47: 66 | C47: 66 | D47: 66 | E47: 66 | F47: 67 | G47: 65 | H47: 67 | I47: 66 | J47: 66 | K47: 72 | L47: 67 | M47: 68 | N47: 70 | O47: 65 | P47: 72 | Q47: 67 | R47: 67 | S47: 62 | T47: 66 | U47: 68 | V47: 64 | W47: 67 | X47: 66 | Y47: 69 | Z47: 65 | AA47: 67 | AB47: 70 | AC47: 68 | AD47: 67 | AE47: 68 | AF47: 69 | AG47: 72 | AH47: 68 | AI47: 65 | AJ47: 75 | AK47: 68 | AL47: 69 | AM47: 64 | AN47: 68 | AO47: 66 | AP47: 70 | AQ47: 71 | AR47: 70 | AS47: 70 | AT47: 65 | AU47: 69 | AV47: 68 | AW47: 71 | AX47: 67 | AY47: 65 | AZ47: 68 | BA47: 70 | BB47: 69 | BC47: 70 | BD47: 65 | BE47: 67 | BF47: 67 | BG47: 67 | BH47: 74 | BI47: 66 | BJ47: 67 | BK47: 66 | BL47: 66 | BM47: 71 | BN47: 70 | BO47: 70 | BP47: 69 | BQ47: 71 | BR47: 74 | BS47: 65 | BT47: 67 | BU47: 69 | BV47: 67 | BW47: 67 | BX47: 71 | BY47: 67 | BZ47: 71 | CA47: 64 | CB47: 67 | CC47: 66 | CD47: 66 | CE47: 66 | CF47: 63 | CG47: 67 | CH47: 67 | CI47: 69 | CJ47: 68 | CK47: 65 | CL47: 75 | CM47: 63 | CN47: 64 | CO47: 66 | CP47: 68 | CQ47: 67 | CR47: 73 | CS47: 73 | CT47: 68 | CU47: 66 | CV47: 69
A48: 64 | B48: 71 | C48: 66 | D48: 61 | E48: 68 | F48: 68 | G48: 65 | H48: 74 | I48: 71 | J48: 72 | K48: 69 | L48: 66 | M48: 69 | N48: 66 | O48: 67 | P48: 65 | Q48: 67 | R48: 70 | S48: 72 | T48: 68 | U48: 62 | V48: 69 | W48: 71 | X48: 72 | Y48: 69 | Z48: 67 | AA48: 72 | AB48: 70 | AC48: 68 | AD48: 67 | AE48: 74 | AF48: 68 | AG48: 61 | AH48: 69 | AI48: 75 | AJ48: 65 | AK48: 68 | AL48: 67 | AM48: 70 | AN48: 66 | AO48: 61 | AP48: 66 | AQ48: 65 | AR48: 66 | AS48: 66 | AT48: 62 | AU48: 69 | AV48: 71 | AW48: 63 | AX48: 69 | AY48: 66 | AZ48: 70 | BA48: 71 | BB48: 68 | BC48: 65 | BD48: 64 | BE48: 68 | BF48: 68 | BG48: 67 | BH48: 69 | BI48: 69 | BJ48: 67 | BK48: 65 | BL48: 72 | BM48: 63 | BN48: 65 | BO48: 67 | BP48: 68 | BQ48: 66 | BR48: 69 | BS48: 69 | BT48: 65 | BU48: 66 | BV48: 62 | BW48: 71 | BX48: 75 | BY48: 67 | BZ48: 70 | CA48: 71 | CB48: 64 | CC48: 71 | CD48: 65 | CE48: 64 | CF48: 71 | CG48: 69 | CH48: 67 | CI48: 67 | CJ48: 71 | CK48: 65 | CL48: 62 | CM48: 67 | CN48: 71 | CO48: 73 | CP48: 66 | CQ48: 69 | CR48: 73 | CS48: 67 | CT48: 72 | CU48: 74 | CV48: 67
A49: 65 | B49: 70 | C49: 67 | D49: 68 | E49: 70 | F49: 68 | G49: 69 | H49: 65 | I49: 69 | J49: 67 | K49: 67 | L49: 68 | M49: 72 | N49: 68 | O49: 68 | P49: 68 | Q49: 67 | R49: 68 | S49: 69 | T49: 67 | U49: 71 | V49: 65 | W49: 71 | X49: 67 | Y49: 69 | Z49: 68 | AA49: 66 | AB49: 72 | AC49: 72 | AD49: 69 | AE49: 72 | AF49: 68 | AG49: 71 | AH49: 73 | AI49: 66 | AJ49: 69 | AK49: 67 | AL49: 69 | AM49: 63 | AN49: 65 | AO49: 71 | AP49: 68 | AQ49: 68 | AR49: 66 | AS49: 68 | AT49: 68 | AU49: 70 | AV49: 69 | AW49: 67 | AX49: 67 | AY49: 64 | AZ49: 72 | BA49: 70 | BB49: 67 | BC49: 66 | BD49: 65 | BE49: 65 | BF49: 66 | BG49: 67 | BH49: 64 | BI49: 68 | BJ49: 67 | BK49: 66 | BL49: 61 | BM49: 69 | BN49: 67 | BO49: 63 | BP49: 74 | BQ49: 70 | BR49: 68 | BS49: 67 | BT49: 70 | BU49: 68 | BV49: 75 | BW49: 68 | BX49: 65 | BY49: 69 | BZ49: 70 | CA49: 73 | CB49: 66 | CC49: 68 | CD49: 66 | CE49: 67 | CF49: 67 | CG49: 67 | CH49: 70 | CI49: 66 | CJ49: 69 | CK49: 69 | CL49: 70 | CM49: 70 | CN49: 69 | CO49: 71 | CP49: 69 | CQ49: 66 | CR49: 68 | CS49: 69 | CT49: 67 | CU49: 69 | CV49: 67
A50: 69 | B50: 71 | C50: 68 | D50: 64 | E50: 67 | F50: 72 | G50: 63 | H50: 69 | I50: 67 | J50: 68 | K50: 68 | L50: 71 | M50: 73 | N50: 73 | O50: 68 | P50: 70 | Q50: 73 | R50: 71 | S50: 61 | T50: 68 | U50: 69 | V50: 75 | W50: 66 | X50: 72 | Y50: 62 | Z50: 73 | AA50: 68 | AB50: 66 | AC50: 68 | AD50: 69 | AE50: 68 | AF50: 67 | AG50: 70 | AH50: 69 | AI50: 68 | AJ50: 68 | AK50: 67 | AL50: 68 | AM50: 69 | AN50: 70 | AO50: 65 | AP50: 70 | AQ50: 62 | AR50: 65 | AS50: 64 | AT50: 69 | AU50: 65 | AV50: 67 | AW50: 73 | AX50: 69 | AY50: 69 | AZ50: 66 | BA50: 68 | BB50: 74 | BC50: 67 | BD50: 69 | BE50: 74 | BF50: 66 | BG50: 66 | BH50: 66 | BI50: 72 | BJ50: 72 | BK50: 68 | BL50: 67 | BM50: 66 | BN50: 70 | BO50: 71 | BP50: 70 | BQ50: 67 | BR50: 69 | BS50: 67 | BT50: 67 | BU50: 72 | BV50: 62 | BW50: 72 | BX50: 69 | BY50: 69 | BZ50: 69 | CA50: 71 | CB50: 70 | CC50: 67 | CD50: 69 | CE50: 73 | CF50: 72 | CG50: 74 | CH50: 68 | CI50: 70 | CJ50: 69 | CK50: 68 | CL50: 70 | CM50: 73 | CN50: 69 | CO50: 62 | CP50: 67 | CQ50: 65 | CR50: 66 | CS50: 69 | CT50: 65 | CU50: 68 | CV50: 65
A52: =AVERAGE(A1:A50) -> 68.44 | B52: 68.4 | C52: 68.28 | D52: 67.88 | E52: 67.86 | F52: 68.04 | G52: 67.3 | H52: 68.28 | I52: 68.18 | J52: 67.78 | K52: 68.16 | L52: =AVERAGE(L1:L50) -> 67.28 | M52: 68.94 | N52: 67.86 | O52: 67.56 | P52: 68.02 | Q52: 68.14 | R52: 67.68 | S52: 68.02 | T52: 68.26 | U52: 67.3 | V52: 67.82 | W52: 67.86 | X52: 68.32 | Y52: 68.56 | Z52: 68.62 | AA52: 68.24 | AB52: 67.68 | AC52: 68.08 | AD52: 68.02 | AE52: 68.36 | AF52: 67.96 | AG52: 68.18 | AH52: 67.86 | AI52: 68.36 | AJ52: 68.66 | AK52: 68.42 | AL52: =AVERAGE(AL1:AL50) -> 68.04 | AM52: 68.42 | AN52: 67.54 | AO52: 67.86 | AP52: 68.56 | AQ52: 67.04 | AR52: 67.92 | AS52: 67.96 | AT52: 67.94 | AU52: 68.24 | AV52: 68.6 | AW52: 68 | AX52: 67.94 | AY52: 68.16 | AZ52: 68.72 | BA52: 67.7 | BB52: 68.42 | BC52: 67.86 | BD52: 67.34 | BE52: 67.48 | BF52: 67.8 | BG52: 68.02 | BH52: 67.84 | BI52: 67.84 | BJ52: 68.08 | BK52: 68.58 | BL52: 68.08 | BM52: 67.38 | BN52: 68.48 | BO52: 67.84 | BP52: 68.78 | BQ52: 68.54 | BR52: 68.78 | BS52: 68.36 | BT52: 67.88 | BU52: 67.78 | BV52: 67.78 | BW52: 68.66 | BX52: 68.32 | BY52: 67.86 | BZ52: 68.26 | CA52: 68.4 | CB52: 68.02 | CC52: =AVERAGE(CC1:CC50) -> 67.52 | CD52: 68.12 | CE52: 68.22 | CF52: 67.98 | CG52: 68.78 | CH52: 68.06 | CI52: 68.42 | CJ52: 67.96 | CK52: 67.9 | CL52: 68.22 | CM52: 67.36 | CN52: 68.02 | CO52: 68.68 | CP52: 68.12 | CQ52: 68.08 | CR52: 68.44 | CS52: 68.66 | CT52: 68 | CU52: 67.6 | CV52: 68.14
A53: =STDEVA(A1:A50)/SQRT(50) -> 0.4220068671 | B53: =STDEVA(B1:B50)/SQRT(50) -> 0.4080816245 | C53: 0.3245593559 | D53: 0.4016699833 | E53: 0.3948753355 | F53: 0.3368037035 | G53: 0.3835920452 | H53: 0.3979949748 | I53: 0.3743729451 | J53: 0.3961961996 | K53: 0.3910843116 | L53: 0.3117298674 | M53: 0.4355714051 | N53: 0.3833365868 | O53: 0.448271055 | P53: 0.3469870315 | Q53: 0.3779752718 | R53: 0.3630258326 | S53: 0.4065685172 | T53: 0.2938971082 | U53: 0.4354214473 | V53: 0.4367692147 | W53: 0.4218617628 | X53: 0.3686046497 | Y53: 0.4190952354 | Z53: 0.4119540295 | AA53: 0.3597731712 | AB53: 0.3238039215 | AC53: 0.4158492663 | AD53: 0.3943374707 | AE53: 0.3862535912 | AF53: 0.3647308205 | AG53: 0.3966080675 | AH53: 0.4342575179 | AI53: 0.4710041379 | AJ53: 0.4329396432 | AK53: 0.3369612101 | AL53: 0.4668260175 | AM53: 0.411160627 | AN53: 0.302654919 | AO53: 0.3758093307 | AP53: 0.3370459909 | AQ53: 0.347539456 | AR53: 0.3842193251 | AS53: 0.4169471165 | AT53: 0.4114781716 | AU53: 0.4136053527 | AV53: 0.2857142857 | AW53: 0.3714285714 | AX53: 0.3983742472 | AY53: 0.4163593424 | AZ53: 0.4915946563 | BA53: 0.4391550328 | BB53: 0.405160588 | BC53: 0.3703390614 | BD53: 0.398579109 | BE53: 0.4113095066 | BF53: 0.288557284 | BG53: 0.3187859624 | BH53: 0.4124194417 | BI53: 0.4663011202 | BJ53: 0.385280179 | BK53: 0.3823557484 | BL53: 0.4293706833 | BM53: 0.4109620371 | BN53: =STDEVA(BN1:BN50)/SQRT(50) -> 0.3738820069 | BO53: 0.44936236 | BP53: 0.4162907147 | BQ53: 0.4249465753 | BR53: 0.3825691881 | BS53: 0.4235515534 | BT53: 0.4532332823 | BU53: 0.333552309 | BV53: 0.4671144596 | BW53: 0.3494719048 | BX53: 0.4548513998 | BY53: 0.3534206028 | BZ53: 0.4018426944 | CA53: 0.4060762972 | CB53: 0.3551257323 | CC53: =STDEVA(CC1:CC50)/SQRT(50) -> 0.3749721078 | CD53: 0.4395173605 | CE53: 0.4520158928 | CF53: 0.3774133229 | CG53: 0.3443894331 | CH53: 0.3492382381 | CI53: 0.4343327042 | CJ53: 0.376839705 | CK53: 0.3706034792 | CL53: 0.4901395053 | CM53: 0.4311919881 | CN53: 0.3774133229 | CO53: 0.3901229529 | CP53: 0.3797313766 | CQ53: 0.3690473118 | CR53: 0.3144934378 | CS53: 0.4338813907 | CT53: 0.4208834246 | CU53: 0.4361239292 | CV53: 0.4160160907
A54: =(A52-mean)/A53 -> 0.8767629837 | B54: 0.8086617485 | C54: 0.647031109 | D54: -0.4730251398 | E54: -0.5318134133 | F54: -0.08907265475 | G54: -2.007340897 | H54: 0.527644853 | I54: 0.2938246511 | J54: -0.7319605799 | K54: 0.2301294052 | L54: -2.534245456 | M54: 1.997376296 | N54: -0.5478214374 | O54: -1.137704508 | P54: -0.1440976044 | Q54: 0.1851973005 | R54: -1.074303713 | S54: -0.1229805012 | T54: 0.6464847551 | U54: -1.768401637 | V54: -0.5723846635 | W54: -0.497793397 | X54: 0.6782334412 | Y54: 1.169185327 | Z54: 1.335100425 | AA54: 0.4725199476 | AB54: -1.204432603 | AC54: 0.02404717481 | AD54: -0.1267949503 | AE54: 0.7508020808 | AF54: -0.3015922807 | AG54: =(AG52-mean)/AG53 -> 0.2773518973 | AH54: -0.4835840287 | AI54: 0.6157058434 | AJ54: 1.362776565 | AK54: 1.038695225 | AL54: -0.06426377039 | AM54: 0.8512488234 | AN54: -1.751169291 | AO54: -0.5587940023 | AP54: 1.453807531 | AQ54: -2.963692272 | AR54: -0.3904020183 | AS54: -0.2638224265 | AT54: -0.3159341345 | AU54: 0.4110198258 | AV54: 1.855 | AW54: -0.1884615385 | AX54: -0.3263263148 | AY54: 0.2161594345 | AZ54: 1.322227554 | BA54: -0.842527063 | BB54: 0.8638550007 | BC54: -0.5670479349 | BD54: -1.831505926 | BE54: -1.434442897 | BF54: -0.9356894281 | BG54: -0.1568450494 | BH54: -0.5576846694 | BI54: -0.4932435073 | BJ54: 0.02595513744 | BK54: 1.333836361 | BL54: 0.02328989936 | BM54: =(BM52-mean)/BM53 -> -1.6789872 | BN54: 1.096602651 | BO54: -0.5118363718 | BP54: 1.705538881 | BQ54: 1.106021386 | BR54: 1.855873453 | BS54: 0.6846864276 | BT54: -0.4192101671 | BU54: -0.8694288486 | BV54: -0.6208328474 | BW54: 1.688261608 | BX54: 0.5496300552 | BY54: -0.5941928636 | BZ54: 0.4728218347 | CA54: 0.8126551642 | CB54: -0.1407952042 | CC54: =(CC52-mean)/CC53 -> -1.466775764 | CD54: 0.1137611491 | CE54: 0.331846739 | CF54: -0.2384653496 | CG54: 2.061619585 | CH54: -0.02863374886 | CI54: 0.805833861 | CJ54: -0.2919013006 | CK54: -0.45871129 | CL54: 0.3060353193 | CM54: -1.646598313 | CN54: -0.1324807498 | CO54: 1.563609615 | CP54: 0.1316720268 | CQ54: 0.02709679675 | CR54: 1.176495136 | CS54: 1.359818634 | CT54: -0.1663168372 | CU54: -1.077675332 | CV54: 0.1682627224
A55: =0.9*_xlfn.NORM.DIST(A52,mean,sd,FALSE) -> 0.5869118415 | B55: 0.6433147137 | C55: 0.7955164933 | D55: 0.8166483286 | E55: 0.7955164933 | F55: 0.9165011002 | G55: 0.1316973935 | H55: 0.7955164933 | I55: 0.8834719098 | J55: 0.6977819668 | K55: 0.8951291294 | L55: 0.1188973599 | M55: 0.07694252746 | N55: 0.7955164933 | O55: 0.3919495553 | P55: 0.9117080989 | Q55: 0.9045655545 | R55: 0.5583926359 | S55: 0.9117080989 | T55: 0.8166483286 | U55: 0.1316973935 | V55: 0.7489652063 | W55: 0.7955164933 | X55: 0.7489652063 | Y55: 0.4184994576 | Z55: 0.3411025473 | AA55: 0.8361465034 | AB55: 0.5583926359 | AC55: 0.9189070417 | AD55: 0.9117080989 | AE55: 0.6977819668 | AF55: 0.8834719098 | AG55: =0.9*_xlfn.NORM.DIST(AG52,mean,sd,FALSE) -> 0.8834719098 | AH55: 0.7955164933 | AI55: 0.6977819668 | AJ55: 0.2937550852 | AK55: 0.615272455 | AL55: 0.9165011002 | AM55: 0.615272455 | AN55: 0.3661228748 | AO55: 0.7955164933 | AP55: 0.4184994576 | AQ55: 0.02841205544 | AR55: 0.8538686909 | AS55: 0.8834719098 | AT55: 0.8696834628 | AU55: 0.8361465034 | AV55: 0.3661228748 | AW55: 0.9045655545 | AX55: 0.8696834628 | AY55: 0.8951291294 | AZ55: 0.2301953903 | BA55: 0.5869118415 | BB55: 0.615272455 | BC55: 0.7955164933 | BD55: 0.1603139628 | BE55: 0.2937550852 | BF55: 0.723869014 | BG55: 0.9117080989 | BH55: 0.7729024962 | BI55: 0.7729024962 | BJ55: 0.9189070417 | BK55: 0.3919495553 | BL55: 0.9189070417 | BM55: =0.9*_xlfn.NORM.DIST(BM52,mean,sd,FALSE) -> 0.1931128459 | BN55: 0.5298682577 | BO55: 0.7729024962 | BP55: 0.1761816006 | BQ55: 0.445677833 | BR55: 0.1761816006 | BS55: 0.6977819668 | BT55: 0.8166483286 | BU55: 0.6977819668 | BV55: 0.6977819668 | BW55: 0.2937550852 | BX55: 0.7489652063 | BY55: 0.7955164933 | BZ55: 0.8166483286 | CA55: 0.6433147137 | CB55: 0.9117080989 | CC55: 0.3411025473 | CD55: 0.9117080989 | CE55: 0.8538686909 | CF55: 0.8951291294 | CG55: 0.1761816006 | CH55: 0.9189070417 | CI55: 0.615272455 | CJ55: 0.8834719098 | CK55: 0.8361465034 | CL55: 0.8538686909 | CM55: 0.1761816006 | CN55: 0.9117080989 | CO55: 0.2715361934 | CP55: 0.9117080989 | CQ55: 0.9189070417 | CR55: 0.5869118415 | CS55: 0.2937550852 | CT55: 0.9045655545 | CU55: 0.445677833 | CV55: 0.9045655545
A56: 1 | B56: 2 | C56: 3 | D56: 4 | E56: 5 | F56: 6 | G56: 7 | H56: 8 | I56: 9 | J56: 10 | K56: 11 | L56: 12 | M56: 13 | N56: 14 | O56: 15 | P56: 16 | Q56: 17 | R56: 18 | S56: 19 | T56: 20 | U56: 21 | V56: 22 | W56: 23 | X56: 24 | Y56: 25 | Z56: 26 | AA56: 27 | AB56: 28 | AC56: 29 | AD56: 30 | AE56: 31 | AF56: 32 | AG56: 33 | AH56: 34 | AI56: 35 | AJ56: 36 | AK56: 37 | AL56: 38 | AM56: 39 | AN56: 40 | AO56: 41 | AP56: 42 | AQ56: 43 | AR56: 44 | AS56: 45 | AT56: 46 | AU56: 47 | AV56: 48 | AW56: 49 | AX56: 50 | AY56: 51 | AZ56: 52 | BA56: 53 | BB56: 54 | BC56: 55 | BD56: 56 | BE56: 57 | BF56: 58 | BG56: 59 | BH56: 60 | BI56: 61 | BJ56: 62 | BK56: 63 | BL56: 64 | BM56: 65 | BN56: 66 | BO56: 67 | BP56: 68 | BQ56: 69 | BR56: 70 | BS56: 71 | BT56: 72 | BU56: 73 | BV56: 74 | BW56: 75 | BX56: 76 | BY56: 77 | BZ56: 78 | CA56: 79 | CB56: 80 | CC56: 81 | CD56: 82 | CE56: 83 | CF56: 84 | CG56: 85 | CH56: 86 | CI56: 87 | CJ56: 88 | CK56: 89 | CL56: 90 | CM56: 91 | CN56: 92 | CO56: 93 | CP56: 94 | CQ56: 95 | CR56: 96 | CS56: 97 | CT56: 98 | CU56: 99 | CV56: 100
C58: T.DIST.2T(ABS(-1.694), 11)

Sheet Calcs
B1: =mean-3.5*sd -> 66.70287975 | C1: =NORMDIST(B1,mean,sd,FALSE) -> 0.002234177594 | D1: x's | E1: =samples!A52 -> 68.44 | F1: =samples!A52 -> 68.44 | G1: =IF(OR(samples!A$52>Right,samples!A$52<Left),1,0) -> 0 | H1: =samples!A55 -> 0.59 | I1: =H1 -> 0.59 | P1: =z -> 1.645
B2: =B1+7*sd/100 -> 66.73022215 | C2: 0.002847448111 | D2: y's | E2: 0 | F2: 0.5 | H2: 0 | I2: 0.05
B3: 66.75756456 | C3: 0.003611319411 | E3: =samples!B$52 -> 68.4 | F3: =samples!B$52 -> 68.4 | G3: =IF(OR(samples!B$52>Right,samples!B$52<Left),1,0) -> 0 | H3: =samples!B55 -> 0.64 | I3: =H3 -> 0.64 | L3: For Pop'n Histogram
B4: 66.78490696 | C4: 0.004557723168 | E4: 0 | F4: 0.5 | H4: 0 | I4: 0.5 | L4: Pop Freqs
B5: 66.81224937 | C5: 0.005724030519 | E5: =samples!C$52 -> 68.28 | F5: =samples!C$52 -> 68.28 | G5: =IF(OR(samples!C$52>Right,samples!C$52<Left),1,0) -> 0 | H5: =samples!C55 -> 0.80 | I5: =H5 -> 0.80 | L5: 61 | M5: =IF(pop=1,Pops!D5,IF(pop=2,Pops!F5,IF(pop=3,Pops!H5,Pops!J5))) -> 4
B6: 66.83959177 | C6: 0.007153653416 | E6: 0 | F6: 0.5 | H6: 0 | I6: 0.5 | L6: 62 | M6: =IF(pop=1,Pops!D6,IF(pop=2,Pops!F6,IF(pop=3,Pops!H6,Pops!J6))) -> 12
B7: 66.86693418 | C7: 0.008896635695 | E7: =samples!D$52 -> 67.88 | F7: =samples!D$52 -> 67.88 | G7: =IF(OR(samples!D$52>Right,samples!D$52<Left),1,0) -> 0 | H7: =samples!D55 -> 0.82 | I7: =H7 -> 0.82 | L7: 63 | M7: =IF(pop=1,Pops!D7,IF(pop=2,Pops!F7,IF(pop=3,Pops!H7,Pops!J7))) -> 6
B8: 66.89427658 | C8: 0.01101021186 | E8: 0 | F8: 0.5 | H8: 0 | I8: 0.5 | L8: 64 | M8: =IF(pop=1,Pops!D8,IF(pop=2,Pops!F8,IF(pop=3,Pops!H8,Pops!J8))) -> 16
B9: 66.92161899 | C9: 0.01355930725 | D9: series 5 | E9: =samples!E$52 -> 67.86 | F9: =samples!E$52 -> 67.86 | G9: =IF(OR(samples!D$52>Right,samples!E$52<Left),1,0) -> 0 | H9: =samples!E55 -> 0.80 | I9: 0.80 | L9: 65 | M9: =IF(pop=1,Pops!D9,IF(pop=2,Pops!F9,IF(pop=3,Pops!H9,Pops!J9))) -> 28
B10: 66.94896139 | C10: 0.01661694892 | E10: 0 | F10: 0.5 | H10: 0 | I10: 0.5 | L10: 66 | M10: =IF(pop=1,Pops!D10,IF(pop=2,Pops!F10,IF(pop=3,Pops!H10,Pops!J10))) -> 54
B11: 66.9763038 | C11: 0.02026455283 | D11: 16 | E11: =samples!F$52 -> 68.04 | F11: =samples!F$52 -> 68.04 | G11: =IF(OR(samples!F$52>Right,samples!F$52<Left),1,0) -> 0 | H11: =samples!F55 -> 0.92 | I11: 0.92 | L11: 67 | M11: =IF(pop=1,Pops!D11,IF(pop=2,Pops!F11,IF(pop=3,Pops!H11,Pops!J11))) -> 60
B12: 67.0036462 | C12: 0.02459204935 | E12: 0 | F12: 0.5 | H12: 0 | I12: 0.5 | L12: 68 | M12: =IF(pop=1,Pops!D12,IF(pop=2,Pops!F12,IF(pop=3,Pops!H12,Pops!J12))) -> 70
B13: 67.03098861 | C13: 0.02969780667 | D13: 18 | E13: =samples!G$52 -> 67.3 | F13: =samples!G$52 -> 67.3 | G13: =IF(OR(samples!G$52>Right,samples!G$52<Left),1,0) -> 1 | H13: =samples!G55 -> 0.13 | I13: 0.13 | L13: 69 | M13: =IF(pop=1,Pops!D13,IF(pop=2,Pops!F13,IF(pop=3,Pops!H13,Pops!J13))) -> 56
B14: 67.05833101 | C14: 0.03568831033 | E14: 0 | F14: 0.5 | H14: 0 | I14: 0.5 | L14: 70 | M14: =IF(pop=1,Pops!D14,IF(pop=2,Pops!F14,IF(pop=3,Pops!H14,Pops!J14))) -> 32
B15: 67.08567342 | C15: 0.04267755737 | D15: 20 | E15: =samples!H$52 -> 68.28 | F15: =samples!H$52 -> 68.28 | G15: =IF(OR(samples!H$52>Right,samples!H$52<Left),1,0) -> 0 | H15: =samples!H55 -> 0.80 | I15: 0.80 | L15: 71 | M15: =IF(pop=1,Pops!D15,IF(pop=2,Pops!F15,IF(pop=3,Pops!H15,Pops!J15))) -> 28
B16: 67.11301582 | C16: 0.05078612531 | E16: 0 | F16: 0.5 | H16: 0 | I16: 0.5 | L16: 72 | M16: =IF(pop=1,Pops!D16,IF(pop=2,Pops!F16,IF(pop=3,Pops!H16,Pops!J16))) -> 20
B17: 67.14035823 | C17: 0.06013988068 | D17: 22 | E17: =samples!I$52 -> 68.18 | F17: =samples!I$52 -> 68.18 | G17: =IF(OR(samples!I$52>Right,samples!I$52<Left),1,0) -> 0 | H17: =samples!I55 -> 0.88 | I17: 0.88 | L17: 73 | M17: =IF(pop=1,Pops!D17,IF(pop=2,Pops!F17,IF(pop=3,Pops!H17,Pops!J17))) -> 18
B18: 67.16770063 | C18: 0.07086829777 | E18: 0 | F18: 0.5 | H18: 0 | I18: 0.5 | L18: 74 | M18: =IF(pop=1,Pops!D18,IF(pop=2,Pops!F18,IF(pop=3,Pops!H18,Pops!J18))) -> 12
B19: 67.19504304 | C19: 0.08310236769 | D19: 24 | E19: =samples!J$52 -> 67.78 | F19: =samples!J$52 -> 67.78 | G19: =IF(OR(samples!J$52>Right,samples!J$52<Left),1,0) -> 0 | H19: =samples!J55 -> 0.70 | I19: 0.70 | L19: 75 | M19: =IF(pop=1,Pops!D19,IF(pop=2,Pops!F19,IF(pop=3,Pops!H19,Pops!J19))) -> 4
B20: 67.22238544 | C20: 0.09697208887 | E20: 0 | F20: 0.5 | H20: 0 | I20: 0.5
B21: 67.24972785 | C21: 0.1126035445 | D21: 26 | E21: =samples!K$52 -> 68.16 | F21: =samples!K$52 -> 68.16 | G21: =IF(OR(samples!K$52>Right,samples!K$52<Left),1,0) -> 0 | H21: =samples!K55 -> 0.90 | I21: 0.90 | J21: pop= | K21: =IF(pop=1,"normal",IF(pop=2,"uniform",IF(pop=3,"U-shaped","skewed"))) -> normal
B22: 67.27707025 | C22: 0.130115588 | E22: 0 | F22: 0.5 | H22: 0 | I22: 0.5 | J22: pop n= | K22: =IF(pop=1, 210,IF(pop=2,424,IF(pop=3,397,410))) -> 210
B23: 67.30441266 | C23: 0.1496161768 | D23: 28 | E23: =samples!L$52 -> 67.28 | F23: =samples!L$52 -> 67.28 | G23: =IF(OR(samples!L$52>Right,samples!L$52<Left),1,0) -> 1 | H23: =samples!L55 -> 0.12 | I23: 0.12 | K23: =IF(pop=1, 210,IF(pop=2,424,IF(pop=3,397,410))) -> 210
B24: 67.33175506 | C24: 0.1711984129 | E24: 0 | F24: 0.5 | H24: 0 | I24: 0.5 | K24: SigLevel= | L24: =IF(Alpha=1, 0.1,IF(Alpha = 2, 0.05,IF(Alpha = 3,0.02,0.01))) -> 10% | M24: =100*L24 -> 10
B25: 67.35909747 | C25: 0.1949363692 | D25: 30 | E25: =samples!M$52 -> 68.94 | F25: =samples!M$52 -> 68.94 | G25: =IF(OR(samples!M$52>Right,samples!M$52<Left),1,0) -> 1 | H25: =samples!M55 -> 0.08 | I25: 0.08 | K25: z-value= | L25: =IF(Alpha = 1, 1.645,IF(Alpha = 2, 1.96,IF(Alpha = 3,2.33,2.57))) -> 1.645 | N25: PCV = | O25: =0.9*_xlfn.NORM.DIST(z,0,1,FALSE) -> 0.09279972998
B26: 67.38643987 | C26: 0.2208808009 | E26: 0 | F26: 0.5 | H26: 0 | I26: 0.5
B27: 67.41378228 | C27: 0.24905486 | D27: 32 | E27: =samples!N$52 -> 67.86 | F27: =samples!N$52 -> 67.86 | G27: =IF(OR(samples!N$52>Right,samples!N$52<Left),1,0) -> 0 | H27: =samples!N55 -> 0.80 | I27: 0.80 | J27: misses= | K27: =COUNTIF(H1:H196,"<" &PCV)-100 -> 4 | L27: =K27/100 -> 4.0%
B28: 67.44112468 | C28: 0.2794499463 | E28: 0 | F28: 0.5 | H28: 0 | I28: 0.5 | J28: hits= | K28: =100-K27 -> 96
B29: 67.46846709 | C29: 0.3120218425 | D29: 34 | E29: =samples!O$52 -> 67.56 | F29: =samples!O$52 -> 67.56 | G29: =IF(OR(samples!O$52>Right,samples!O$52<Left),1,0) -> 0 | H29: =samples!O55 -> 0.39 | I29: 0.39
B30: 67.49580949 | C30: 0.3466872905 | E30: 0 | F30: 0.5 | H30: 0 | I30: 0.5
B31: 67.5231519 | C31: 0.3833211668 | D31: 36 | E31: =samples!P$52 -> 68.02 | F31: =samples!P$52 -> 68.02 | G31: =IF(OR(samples!P$52>Right,samples!P$52<Left),1,0) -> 0 | H31: =samples!P55 -> 0.91 | I31: 0.91 | M31: New Sample = | O31: =IF('P-Values'!D27=1,-1,1) -> 1
B32: 67.5504943 | C32: 0.4217544166 | E32: 0 | F32: 0.5 | H32: 0 | I32: 0.5
B33: 67.57783671 | C33: =NORMDIST(B33,mean,sd,FALSE) -> 0.4617728916 | D33: 38 | E33: =samples!Q$52 -> 68.14 | F33: =samples!Q$52 -> 68.14 | G33: =IF(OR(samples!Q$52>Right,samples!Q$52<Left),1,0) -> 0 | H33: =samples!Q55 -> 0.90 | I33: 0.90
B34: =B33+7*sd/100 -> 67.60517911 | C34: 0.5031172244 | E34: 0 | F34: 0.5 | H34: 0 | I34: 0.5 | K34: Vertical line for PCV
B35: 67.63252152 | C35: 0.545483847 | D35: 40 | E35: =samples!R$52 -> 67.68 | F35: =samples!R$52 -> 67.68 | G35: =IF(OR(samples!R$52>Right,samples!R$52<Left),1,0) -> 0 | H35: =samples!R55 -> 0.56 | I35: 0.56 | L35: =PCV -> 0.09279972998 | M35: 0
B36: 67.65986392 | C36: 0.5885272286 | E36: 18 | F36: 18 | H36: 0 | I36: 0.5 | L36: =L35 -> 0.09279972998 | M36: 0.6
B37: 67.68720633 | C37: 0.631863376 | D37: 42 | E37: =samples!S$52 -> 68.02 | F37: =samples!S$52 -> 68.02 | G37: =IF(OR(samples!S$52>Right,samples!S$52<Left),1,0) -> 0 | H37: =samples!S55 -> 0.91 | I37: 0.91
B38: 67.71454873 | C38: 0.6750745934 | E38: 0 | F38: 0.5 | H38: 0 | I38: 0.5
B39: 67.74189114 | C39: 0.7177154588 | D39: 44 | E39: =samples!T$52 -> 68.26 | F39: =samples!T$52 -> 68.26 | G39: =IF(OR(samples!T$52>Right,samples!T$52<Left),1,0) -> 0 | H39: =samples!T557 -> 0.00 | I39: 0.00 | K39: Horizontal line for PCV
B40: 67.76923354 | C40: 0.7593199222 | E40: 0 | F40: 0.5 | H40: 0 | I40: 0.5 | L40: =mean-3*sd -> 66.89818264 | M40: =PCV -> 0.09279972998
B41: 67.79657595 | C41: 0.7994093908 | D41: 46 | E41: =samples!U$52 -> 67.3 | F41: =samples!U$52 -> 67.3 | G41: =IF(OR(samples!U$52>Right,samples!U$52<Left),1,0) -> 1 | H41: =samples!U55 -> 0.13 | I41: 0.13 | L41: =mean+3*sd -> 69.24181736 | M41: =M40 -> 0.09279972998
B42: 67.82391835 | C42: 0.8375016162 | E42: 0 | F42: 0.5 | H42: 0 | I42: 0.5
B43: 67.85126076 | C43: 0.873120166 | D43: 48 | E43: =samples!V$52 -> 67.82 | F43: =samples!V$52 -> 67.82 | G43: =IF(OR(samples!V$52>Right,samples!V$52<Left),1,0) -> 0 | H43: =samples!V55 -> 0.75 | I43: 0.75
B44: 67.87860316 | C44: 0.9058042232 | E44: 0 | F44: 0.5 | H44: 0 | I44: 0.5
B45: 67.90594557 | C45: 0.9351184385 | D45: 50 | E45: =samples!W$52 -> 67.86 | F45: =samples!W$52 -> 67.86 | G45: =IF(OR(samples!W$52>Right,samples!W$52<Left),1,0) -> 0 | H45: =samples!W55 -> 0.80 | I45: 0.80
B46: 67.93328797 | C46: 0.9606625412 | E46: 0 | F46: 0.5 | H46: 0 | I46: 0.5
B47: 67.96063038 | C47: 0.9820804145 | D47: 52 | E47: =samples!X$52 -> 68.32 | F47: =samples!X$52 -> 68.32 | G47: =IF(OR(samples!X$52>Right,samples!X$52<Left),1,0) -> 0 | H47: =samples!X55 -> 0.75 | I47: 0.75
B48: 67.98797278 | C48: 0.9990683488 | E48: 0 | F48: 0.5 | H48: 0 | I48: 0.5
B49: 68.01531519 | C49: 1.011382204 | D49: 54 | E49: =samples!Y$52 -> 68.56 | F49: =samples!Y$52 -> 68.56 | G49: =IF(OR(samples!Y$52>Right,samples!Y$52<Left),1,0) -> 0 | H49: =samples!Y557 -> 0.00 | I49: 0.00
B50: 68.04265759 | C50: 1.018843249 | E50: 0 | F50: 0.5 | H50: 0 | I50: 0.5
B51: 68.07 | C51: 1.021342476 | D51: 56 | E51: =samples!Z$52 -> 68.62 | F51: =samples!Z$52 -> 68.62 | G51: =IF(OR(samples!Z$52>Right,samples!Z$52<Left),1,0) -> 0 | H51: =samples!Z55 -> 0.34 | I51: 0.34
B52: 68.09734241 | C52: 1.018843249 | E52: 0 | F52: 0.5 | H52: 0 | I52: 0.5
B53: 68.12468481 | C53: 1.011382204 | D53: 58 | E53: =samples!AA$52 -> 68.24 | F53: =samples!AA$52 -> 68.24 | G53: =IF(OR(samples!AA$52>Right,samples!AA$52<Left),1,0) -> 0 | H53: =samples!AA55 -> 0.84 | I53: 0.84
B54: 68.15202722 | C54: 0.9990683488 | E54: 0 | F54: 0.5 | H54: 0 | I54: 0.5
B55: 68.17936962 | C55: 0.9820804145 | D55: 60 | E55: =samples!AB$52 -> 67.68 | F55: =samples!AB$52 -> 67.68 | G55: =IF(OR(samples!AB$52>Right,samples!AB$52<Left),1,0) -> 0 | H55: =samples!AB55 -> 0.56 | I55: 0.56
B56: 68.20671203 | C56: 0.9606625412 | E56: 0 | F56: 0.5 | H56: 0 | I56: 0.5
B57: 68.23405443 | C57: 0.9351184385 | D57: 62 | E57: =samples!AC$52 -> 68.08 | F57: =samples!AC$52 -> 68.08 | G57: =IF(OR(samples!AC$52>Right,samples!AC$52<Left),1,0) -> 0 | H57: =samples!AC55 -> 0.92 | I57: 0.92
B58: 68.26139684 | C58: 0.9058042232 | E58: 0 | F58: 0.5 | H58: 0 | I58: 0.5
B59: 68.28873924 | C59: 0.873120166 | D59: 64 | E59: =samples!AD$52 -> 68.02 | F59: =samples!AD$52 -> 68.02 | G59: =IF(OR(samples!AD$52>Right,samples!AD$52<Left),1,0) -> 0 | H59: =samples!AD55 -> 0.91 | I59: 0.91
B60: 68.31608165 | C60: 0.8375016162 | E60: 0 | F60: 0.5 | H60: 0 | I60: 0.5
B61: 68.34342405 | C61: 0.7994093908 | D61: 66 | E61: =samples!AE$52 -> 68.36 | F61: =samples!AE$52 -> 68.36 | G61: =IF(OR(samples!AE$52>Right,samples!AE$52<Left),1,0) -> 0 | H61: =samples!AE55 -> 0.70 | I61: 0.70
B62: 68.37076646 | C62: 0.7593199222 | E62: 0 | F62: 0.5 | H62: 0 | I62: 0.5
B63: 68.39810886 | C63: 0.7177154588 | D63: 68 | E63: =samples!AF$52 -> 67.96 | F63: =samples!AF$52 -> 67.96 | G63: =IF(OR(samples!AF$52>Right,samples!AF$52<Left),1,0) -> 0 | H63: =samples!AF55 -> 0.88 | I63: 0.88
B64: 68.42545127 | C64: 0.6750745934 | E64: 0 | F64: 0.5 | H64: 0 | I64: 0.5
B65: 68.45279367 | C65: =NORMDIST(B65,mean,sd,FALSE) -> 0.631863376 | D65: 70 | E65: =samples!AG$52 -> 68.18 | F65: =samples!AG$52 -> 68.18 | G65: =IF(OR(samples!AG$52>Right,samples!AG$52<Left),1,0) -> 0 | H65: =samples!IAG55 -> 0.00 | I65: 0.00
B66: =B65+7*sd/100 -> 68.48013608 | C66: 0.5885272286 | E66: 0 | F66: 0.5 | H66: 0 | I66: 0.5
B67: 68.50747848 | C67: 0.545483847 | D67: 72 | E67: =samples!AH$52 -> 67.86 | F67: =samples!AH$52 -> 67.86 | G67: =IF(OR(samples!AH$52>Right,samples!AH$52<Left),1,0) -> 0 | H67: =samples!AH55 -> 0.80 | I67: 0.80
B68: 68.53482089 | C68: 0.5031172244 | E68: 0 | F68: 0.5 | H68: 0 | I68: 0.5
B69: 68.56216329 | C69: 0.4617728916 | D69: 74 | E69: =samples!AI$52 -> 68.36 | F69: =samples!AI$52 -> 68.36 | G69: =IF(OR(samples!AI$52>Right,samples!AI$52<Left),1,0) -> 0 | H69: =samples!AI55 -> 0.70 | I69: 0.70
B70: 68.5895057 | C70: 0.4217544166 | E70: 0 | F70: 0.5 | H70: 0 | I70: 0.5
B71: 68.6168481 | C71: 0.3833211668 | D71: 76 | E71: =samples!AJ$52 -> 68.66 | F71: =samples!AJ$52 -> 68.66 | G71: =IF(OR(samples!AJ$52>Right,samples!AJ$52<Left),1,0) -> 0 | H71: =samples!AJ55 -> 0.29 | I71: =H71 -> 0.29
B72: 68.64419051 | C72: 0.3466872905 | E72: 0 | F72: 0.5 | H72: 0 | I72: 0.5
B73: 68.67153291 | C73: 0.3120218425 | D73: 78 | E73: =samples!AK$52 -> 68.42 | F73: =samples!AK$52 -> 68.42 | G73: =IF(OR(samples!AK$52>Right,samples!AK$52<Left),1,0) -> 0 | H73: =samples!AK55 -> 0.62 | I73: 0.62
B74: 68.69887532 | C74: 0.2794499463 | E74: 0 | F74: 0.5 | H74: 0 | I74: 0.5
B75: 68.72621772 | C75: 0.24905486 | D75: 80 | E75: =samples!AL$52 -> 68.04 | F75: =samples!AL$52 -> 68.04 | G75: =IF(OR(samples!AL$52>Right,samples!AL$52<Left),1,0) -> 0 | H75: =samples!AL55 -> 0.92 | I75: 0.92
B76: 68.75356013 | C76: 0.2208808009 | E76: 0 | F76: 0.5 | H76: 0 | I76: 0.5
B77: 68.78090253 | C77: 0.1949363692 | D77: 82 | E77: =samples!AM$52 -> 68.42 | F77: =samples!AM$52 -> 68.42 | G77: =IF(OR(samples!AM$52>Right,samples!AM$52<Left),1,0) -> 0 | H77: =samples!AM55 -> 0.62 | I77: 0.62
B78: 68.80824494 | C78: 0.1711984129 | E78: 0 | F78: 0.5 | H78: 0 | I78: 0.5
B79: 68.83558734 | C79: 0.1496161768 | D79: 84 | E79: =samples!AN$52 -> 67.54 | F79: =samples!AN$52 -> 67.54 | G79: =IF(OR(samples!AN$52>Right,samples!AN$52<Left),1,0) -> 0 | H79: =samples!AN55 -> 0.37 | I79: 0.37
B80: 68.86292975 | C80: 0.130115588 | E80: 0 | F80: 0.5 | H80: 0 | I80: 0.5
B81: 68.89027215 | C81: 0.1126035445 | D81: 86 | E81: =samples!AO$52 -> 67.86 | F81: =samples!AO$52 -> 67.86 | G81: =IF(OR(samples!AO$52>Right,samples!AO$52<Left),1,0) -> 0 | H81: =samples!A55 -> 0.59 | I81: 0.59
B82: 68.91761456 | C82: 0.09697208887 | E82: 0 | F82: 0.5 | H82: 0 | I82: 0.5
B83: 68.94495696 | C83: 0.08310236769 | D83: 88 | E83: =samples!AP$52 -> 68.56 | F83: =samples!AP$52 -> 68.56 | G83: =IF(OR(samples!AP$52>Right,samples!AP$52<Left),1,0) -> 0 | H83: =samples!AP55 -> 0.42 | I83: 0.42
B84: 68.97229937 | C84: 0.07086829777 | E84: 0 | F84: 0.5 | H84: 0 | I84: 0.5
B85: 68.99964177 | C85: 0.06013988068 | D85: 90 | E85: =samples!AQ$52 -> 67.04 | F85: =samples!AQ$52 -> 67.04 | G85: =IF(OR(samples!AQ$52>Right,samples!AQ$52<Left),1,0) -> 1 | H85: =samples!IAQ55 -> 0.00 | I85: 0.00
B86: 69.02698418 | C86: 0.05078612531 | E86: 0 | F86: 0.5 | H86: 0 | I86: 0.5
B87: 69.05432658 | C87: 0.04267755737 | D87: 92 | E87: =samples!AR$52 -> 67.92 | F87: =samples!AR$52 -> 67.92 | G87: =IF(OR(samples!AR$52>Right,samples!AR$52<Left),1,0) -> 0 | H87: =samples!AR55 -> 0.85 | I87: 0.85
B88: 69.08166899 | C88: 0.03568831033 | E88: 0 | F88: 0.5 | H88: 0 | I88: 0.5
B89: 69.10901139 | C89: 0.02969780667 | D89: 94 | E89: =samples!AS$52 -> 67.96 | F89: =samples!AS$52 -> 67.96 | G89: =IF(OR(samples!AS$52>Right,samples!AS$52<Left),1,0) -> 0 | H89: =samples!AS55 -> 0.88 | I89: 0.88
B90: 69.1363538 | C90: 0.02459204935 | E90: 0 | F90: 0.5 | H90: 0 | I90: 0.5
B91: 69.1636962 | C91: 0.02026455283 | D91: 96 | E91: =samples!AT$52 -> 67.94 | F91: =samples!AT$52 -> 67.94 | G91: =IF(OR(samples!AT$52>Right,samples!AT$52<Left),1,0) -> 0 | H91: =samples!AT55 -> 0.87 | I91: 0.87
B92: 69.19103861 | C92: 0.01661694892 | E92: 0 | F92: 0.5 | H92: 0 | I92: 0.5
B93: 69.21838101 | C93: 0.01355930725 | D93: 98 | E93: =samples!AU$52 -> 68.24 | F93: =samples!AU$52 -> 68.24 | G93: =IF(OR(samples!AU$52>Right,samples!AU$52<Left),1,0) -> 0 | H93: =samples!IAU55 -> 0.00 | I93: 0.00
B94: 69.24572342 | C94: 0.01101021186 | E94: 0 | F94: 0.5 | H94: 0 | I94: 0.5
B95: 69.27306582 | C95: 0.008896635695 | D95: 100 | E95: =samples!AV$52 -> 68.6 | F95: =samples!AV$52 -> 68.6 | G95: =IF(OR(samples!AV$52>Right,samples!AV$52<Left),1,0) -> 0 | H95: =samples!AV55 -> 0.37 | I95: 0.37
B96: 69.30040823 | C96: 0.007153653416 | E96: 0 | F96: 0.5 | H96: 0 | I96: 0.5
B97: 69.32775063 | C97: =NORMDIST(B97,mean,sd,FALSE) -> 0.005724030519 | D97: 102 | E97: =samples!AW$52 -> 68 | F97: =samples!AW$52 -> 68 | G97: =IF(OR(samples!AW$52>Right,samples!AW$52<Left),1,0) -> 0 | H97: =samples!AW55 -> 0.90 | I97: 0.90
B98: 69.35509304 | C98: =NORMDIST(B98,mean,sd,FALSE) -> 0.004557723168 | E98: 0 | F98: 0.5 | H98: 0 | I98: 0.5
B99: 69.38243544 | C99: =NORMDIST(B99,mean,sd,FALSE) -> 0.003611319411 | D99: 104 | E99: =samples!AX$52 -> 67.94 | F99: =samples!AX$52 -> 67.94 | G99: =IF(OR(samples!AX$52>Right,samples!AX$52<Left),1,0) -> 0 | H99: =samples!AX55 -> 0.87 | I99: 0.87
B100: 69.40977785 | C100: =NORMDIST(B100,mean,sd,FALSE) -> 0.002847448111 | E100: 0 | F100: 0.5 | H100: 0 | I100: 0.5
B101: 69.43712025 | C101: =NORMDIST(B101,mean,sd,FALSE) -> 0.002234177594 | D101: 106 | E101: =samples!AY$52 -> 68.16 | F101: =samples!AY$52 -> 68.16 | G101: =IF(OR(samples!AY$52>Right,samples!AY$52<Left),1,0) -> 0 | H101: =samples!AY55 -> 0.90 | I101: 0.90
E102: 0 | F102: 0.5 | H102: 0 | I102: 0.5
D103: 108 | E103: =samples!AZ$52 -> 68.72 | F103: =samples!AZ$52 -> 68.72 | G103: =IF(OR(samples!AZ$52>Right,samples!AZ$52<Left),1,0) -> 1 | H103: =samples!AZ55 -> 0.23 | I103: 0.23
E104: 0 | F104: 0.5 | H104: 0 | I104: 0.5
D105: 110 | E105: =samples!BA$52 -> 67.7 | F105: =samples!BA$52 -> 67.7 | G105: =IF(OR(samples!BA$52>Right,samples!BA$52<Left),1,0) -> 0 | H105: =samples!BA55 -> 0.59 | I105: 0.59
E106: 0 | F106: 0.5 | H106: 0 | I106: 0.5
D107: 112 | E107: =samples!BB$52 -> 68.42 | F107: =samples!BB$52 -> 68.42 | G107: =IF(OR(samples!BB$52>Right,samples!BB$52<Left),1,0) -> 0 | H107: =samples!BB55 -> 0.62 | I107: 0.62
E108: 0 | F108: 0.5 | H108: 0 | I108: 0.5
D109: 114 | E109: =samples!BC$52 -> 67.86 | F109: =samples!BC$52 -> 67.86 | G109: =IF(OR(samples!BC$52>Right,samples!BC$52<Left),1,0) -> 0 | H109: =samples!BC55 -> 0.80 | I109: 0.80
E110: 0 | F110: 0.5 | H110: 0 | I110: 0.5
D111: 116 | E111: =samples!BD$52 -> 67.34 | F111: =samples!BD$52 -> 67.34 | G111: =IF(OR(samples!BD$52>Right,samples!BD$52<Left),1,0) -> 1 | H111: =samples!BD55 -> 0.16 | I111: 0.16
E112: 0 | F112: 0.5 | H112: 0 | I112: 0.5
D113: 118 | E113: =samples!BE$52 -> 67.48 | F113: =samples!BE$52 -> 67.48 | G113: =IF(OR(samples!BE$52>Right,samples!BE$52<Left),1,0) -> 0 | H113: =samples!BE55 -> 0.29 | I113: 0.29
E114: 0 | F114: 0.5 | H114: 0 | I114: 0.5
D115: 120 | E115: =samples!BF$52 -> 67.8 | F115: =samples!BF$52 -> 67.8 | G115: =IF(OR(samples!BF$52>Right,samples!BF$52<Left),1,0) -> 0 | H115: =samples!BF55 -> 0.72 | I115: 0.72
E116: 0 | F116: 0.5 | H116: 0 | I116: 0.5
D117: 122 | E117: =samples!BG$52 -> 68.02 | F117: =samples!BG$52 -> 68.02 | G117: =IF(OR(samples!BG$52>Right,samples!BG$52<Left),1,0) -> 0 | H117: =samples!BG55 -> 0.91 | I117: 0.91
E118: 0 | F118: 0.5 | H118: 0 | I118: 0.5
D119: 124 | E119: =samples!BH$52 -> 67.84 | F119: =samples!BH$52 -> 67.84 | G119: =IF(OR(samples!BH$52>Right,samples!BH$52<Left),1,0) -> 0 | H119: =samples!BH55 -> 0.77 | I119: 0.77
E120: 0 | F120: 0.5 | H120: 0 | I120: 0.5
D121: 126 | E121: =samples!BI$52 -> 67.84 | F121: =samples!BI$52 -> 67.84 | G121: =IF(OR(samples!BI$52>Right,samples!BI$52<Left),1,0) -> 0 | H121: =samples!BI55 -> 0.77 | I121: 0.77
E122: 0 | F122: 0.5 | H122: 0 | I122: 0.5
D123: 128 | E123: =samples!BJ$52 -> 68.08 | F123: =samples!BJ$52 -> 68.08 | G123: =IF(OR(samples!BJ$52>Right,samples!BJ$52<Left),1,0) -> 0 | H123: =samples!BJ55 -> 0.92 | I123: 0.92
E124: 0 | F124: 0.5 | H124: 0 | I124: 0.5
D125: 130 | E125: =samples!BK$52 -> 68.58 | F125: =samples!BK$52 -> 68.58 | G125: =IF(OR(samples!BK$52>Right,samples!BK$52<Left),1,0) -> 0 | H125: =samples!BK55 -> 0.39 | I125: 0.39
E126: 0 | F126: 0.5 | H126: 0 | I126: 0.5
D127: 132 | E127: =samples!BL$52 -> 68.08 | F127: =samples!BL$52 -> 68.08 | G127: =IF(OR(samples!BL$52>Right,samples!BL$52<Left),1,0) -> 0 | H127: =samples!BL55 -> 0.92 | I127: 0.92
E128: 0 | F128: 0.5 | H128: 0 | I128: 0.5
D129: 134 | E129: =samples!BM$52 -> 67.38 | F129: =samples!BM$52 -> 67.38 | G129: =IF(OR(samples!BM$52>Right,samples!BM$52<Left),1,0) -> 1 | H129: =samples!BM55 -> 0.19 | I129: 0.19
E130: 0 | F130: 0.5 | H130: 0 | I130: 0.5
D131: 136 | E131: =samples!BN$52 -> 68.48 | F131: =samples!BN$52 -> 68.48 | G131: =IF(OR(samples!BN$52>Right,samples!BN$52<Left),1,0) -> 0 | H131: =samples!BN55 -> 0.53 | I131: 0.53
E132: 0 | F132: 0.5 | H132: 0 | I132: 0.5
D133: 138 | E133: =samples!BO$52 -> 67.84 | F133: =samples!BO$52 -> 67.84 | G133: =IF(OR(samples!BO$52>Right,samples!BO$52<Left),1,0) -> 0 | H133: =samples!BO55 -> 0.77 | I133: 0.77
E134: 0 | F134: 0.5 | H134: 0 | I134: 0.5
D135: 140 | E135: =samples!BP$52 -> 68.78 | F135: =samples!BP$52 -> 68.78 | G135: =IF(OR(samples!BP$52>Right,samples!BP$52<Left),1,0) -> 1 | H135: =samples!BP55 -> 0.18 | I135: =H135 -> 0.18
E136: 0 | F136: 0.5 | H136: 0 | I136: 0.5
D137: 142 | E137: =samples!BQ$52 -> 68.54 | F137: =samples!BQ$52 -> 68.54 | G137: =IF(OR(samples!BQ$52>Right,samples!BQ$52<Left),1,0) -> 0 | H137: =samples!BQ55 -> 0.45 | I137: 0.45
E138: 0 | F138: 0.5 | H138: 0 | I138: 0.5
D139: 144 | E139: =samples!BR$52 -> 68.78 | F139: =samples!BR$52 -> 68.78 | G139: =IF(OR(samples!BR$52>Right,samples!BR$52<Left),1,0) -> 1 | H139: =samples!BR55 -> 0.18 | I139: 0.18
E140: 0 | F140: 0.5 | H140: 0 | I140: 0.5
D141: 146 | E141: =samples!BS$52 -> 68.36 | F141: =samples!BS$52 -> 68.36 | G141: =IF(OR(samples!BS$52>Right,samples!BS$52<Left),1,0) -> 0 | H141: =samples!BS55 -> 0.70 | I141: 0.70
E142: 0 | F142: 0.5 | H142: 0 | I142: 0.5
D143: 148 | E143: =samples!BT$52 -> 67.88 | F143: =samples!BT$52 -> 67.88 | G143: =IF(OR(samples!BT$52>Right,samples!BT$52<Left),1,0) -> 0 | H143: =samples!BT55 -> 0.82 | I143: 0.82
E144: 0 | F144: 0.5 | H144: 0 | I144: 0.5
D145: 150 | E145: =samples!BU$52 -> 67.78 | F145: =samples!BU$52 -> 67.78 | G145: =IF(OR(samples!BU$52>Right,samples!BU$52<Left),1,0) -> 0 | H145: =samples!BU55 -> 0.70 | I145: 0.70
E146: 0 | F146: 0.5 | H146: 0 | I146: 0.5
D147: 152 | E147: =samples!BV$52 -> 67.78 | F147: =samples!BV$52 -> 67.78 | G147: =IF(OR(samples!BV$52>Right,samples!BV$52<Left),1,0) -> 0 | H147: =samples!BV55 -> 0.70 | I147: 0.70
E148: 0 | F148: 0.5 | H148: 0 | I148: 0.5
D149: 154 | E149: =samples!BW$52 -> 68.66 | F149: =samples!BW$52 -> 68.66 | G149: =IF(OR(samples!BW$52>Right,samples!BW$52<Left),1,0) -> 0 | H149: =samples!BW55 -> 0.29 | I149: 0.29
E150: 0 | F150: 0.5 | H150: 0 | I150: 0.5
D151: 156 | E151: =samples!BX$52 -> 68.32 | F151: =samples!BX$52 -> 68.32 | G151: =IF(OR(samples!BX$52>Right,samples!BX$52<Left),1,0) -> 0 | H151: =samples!BX55 -> 0.75 | I151: 0.75
E152: 0 | F152: 0.5 | H152: 0 | I152: 0.5
D153: 158 | E153: =samples!BY$52 -> 67.86 | F153: =samples!BY$52 -> 67.86 | G153: =IF(OR(samples!BY$52>Right,samples!BY$52<Left),1,0) -> 0 | H153: =samples!BY55 -> 0.80 | I153: 0.80
E154: 0 | F154: 0.5 | H154: 0 | I154: 0.5
D155: 160 | E155: =samples!BZ$52 -> 68.26 | F155: =samples!BZ$52 -> 68.26 | G155: =IF(OR(samples!BZ$52>Right,samples!BZ$52<Left),1,0) -> 0 | H155: =samples!BZ55 -> 0.82 | I155: 0.82
E156: 0 | F156: 0.5 | H156: 0 | I156: 0.5
D157: 162 | E157: =samples!CA$52 -> 68.4 | F157: =samples!CA$52 -> 68.4 | G157: =IF(OR(samples!CA$52>Right,samples!CA$52<Left),1,0) -> 0 | H157: =samples!CA55 -> 0.64 | I157: 0.64
E158: 0 | F158: 0.5 | H158: 0 | I158: 0.5
D159: 164 | E159: =samples!CB$52 -> 68.02 | F159: =samples!CB$52 -> 68.02 | G159: =IF(OR(samples!CB$52>Right,samples!CB$52<Left),1,0) -> 0 | H159: =samples!CB55 -> 0.91 | I159: 0.91
E160: 0 | F160: 0.5 | H160: 0 | I160: 0.5
D161: =D159+2 -> 166 | H161: =samples!CC$55 -> 0.34 | I161: 0.34
H162: 0 | I162: 0.5
D163: =D161+2 -> 168 | H163: =samples!CD$55 -> 0.91 | I163: 0.91
H164: 0 | I164: 0.5
D165: =D163+2 -> 170 | H165: =samples!CE$55 -> 0.85 | I165: 0.85
H166: 0 | I166: 0.5
D167: =D165+2 -> 172 | H167: =samples!CF$55 -> 0.90 | I167: 0.90
H168: 0 | I168: 0.5
D169: =D167+2 -> 174 | H169: =samples!CG$55 -> 0.18 | I169: 0.18
H170: 0 | I170: 0.5
D171: =D169+2 -> 176 | H171: =samples!CH$55 -> 0.92 | I171: 0.92
H172: 0 | I172: 0.5
D173: =D171+2 -> 178 | H173: =samples!CI$55 -> 0.62 | I173: 0.62
H174: 0 | I174: 0.5
D175: =D173+2 -> 180 | H175: =samples!CJ$55 -> 0.88 | I175: 0.88
H176: 0 | I176: 0.5
D177: =D175+2 -> 182 | H177: =samples!CK$55 -> 0.84 | I177: 0.84
H178: 0 | I178: 0.5
D179: =D177+2 -> 184 | H179: =samples!CL$55 -> 0.85 | I179: 0.85
H180: 0 | I180: 0.5
D181: =D179+2 -> 186 | H181: =samples!CM$55 -> 0.18 | I181: 0.18
H182: 0 | I182: 0.5
D183: =D181+2 -> 188 | H183: =samples!CN$55 -> 0.91 | I183: 0.91
H184: 0 | I184: 0.5
D185: =D183+2 -> 190 | H185: =samples!CO$55 -> 0.27 | I185: 0.27
H186: 0 | I186: 0.5
D187: =D185+2 -> 192 | H187: =samples!CP$55 -> 0.91 | I187: 0.91
H188: 0 | I188: 0.5
D189: =D187+2 -> 194 | H189: =samples!CQ$55 -> 0.92 | I189: 0.92
H190: 0 | I190: 0.5
D191: =D189+2 -> 196 | H191: =samples!CR$55 -> 0.59 | I191: 0.59
H192: 0 | I192: 0.5
D193: =D191+2 -> 198 | H193: =samples!CS$55 -> 0.29 | I193: 0.29
H194: 0 | I194: 0.5
D195: =D193+2 -> 200 | H195: =samples!CT$55 -> 0.90 | I195: 0.90
B196: Two vertical lines | H196: 0 | I196: 0.5
B197: =mean-$L$25*sd -> 67.42745348 | C197: =mean-$L$25*sd -> 67.42745348
B198: 0 | C198: 0.75
B199: =mean+$L$25*sd -> 68.71254652 | C199: =mean+$L$25*sd -> 68.71254652
B200: 0 | C200: 0.75
... 2 more rows
